{"text_format":"1","workbook":"xlsx","n_sheets":4,"sheets":["Form","Form A","Ver","Languages"],"not_rendered":{"charts":0,"images":1,"macros":1,"external_links":0,"defined_names":2,"comments":0,"pivot_tables":0},"unopened":[],"bounds":{"document_bytes":16777216,"sheet_cells":100000,"rows_first":2000,"rows_last":500,"rows_between":2000,"halvings":0,"cell_chars":16384,"cell_head_chars":4096},"cells_cut":0,"cells_raw":0,"read":"whole","date_system":"1900"}

{"sheet":"Form","index":0,"n_rows":419,"n_cols":54,"rows_kept":419,"cut":false,"hidden":false,"merged":[[46,2,46,3],[18,20,18,21],[31,4,31,8],[31,17,31,20],[44,13,44,15],[45,13,45,15],[44,21,44,22],[45,21,45,22],[46,21,46,22],[36,8,36,11],[37,8,37,10],[43,2,43,4],[44,11,44,12],[45,11,45,12],[43,5,43,7],[45,2,45,3],[11,2,11,5],[11,21,11,25],[11,6,11,20],[26,5,26,8],[26,12,26,15],[25,12,25,15],[24,12,24,15],[19,13,19,14],[20,6,20,11],[18,13,18,14],[24,21,24,22],[24,5,24,8],[25,5,25,8],[20,20,20,21],[44,2,44,3],[8,25,8,26],[13,2,13,10],[13,12,13,16],[8,23,8,24],[8,7,8,8],[8,14,8,15],[8,16,8,17],[8,19,8,20],[8,21,8,22],[13,18,13,25],[7,7,7,13],[5,7,5,17],[5,20,5,26],[6,7,6,17],[7,21,7,22],[7,23,7,24],[7,25,7,26],[6,24,6,26],[74,14,78,26],[36,2,36,6],[69,5,69,26],[70,2,70,26],[71,2,71,26],[37,5,37,6],[37,17,37,18],[38,5,38,6],[49,14,49,15],[46,5,46,9],[36,13,36,18],[47,5,47,6],[49,5,49,6],[47,14,47,15],[48,14,48,15],[46,13,46,15],[47,21,47,22],[48,21,48,22],[49,21,49,22],[17,5,17,6],[17,20,17,21],[25,21,25,22],[17,13,17,14],[48,5,48,6],[45,5,45,7],[18,5,18,8],[44,5,44,7]]}
[]
[]
[]
[null,null,null,null,{"$f":"Languages!A18","v":"MİK-EL ELEKTRONİK KUMANDA PANOSU & BUTONYER TEKLİF / SİPARİŞ FORMU"},null,null,null,null,null,null,null,null,null,null,null,null,null,null,null,null,null,null,null,null,null,"TR",null,"    TR\n<= EN\n     RU"]
[]
[null,null,{"$f":"Languages!A19","v":"Firma Adı"},null,null,null,null,null,null,null,null,null,null,null,null,null,null,null,null,{"$f":"Languages!A24","v":"Tarih"},{"$f":"TODAY()","v":"2020-05-07"}]
[null,null,{"$f":"Languages!A20","v":"Referans/Proje Adı"},null,null,null,null,null,null,null,null,null,null,null,null,null,null,null,null,{"$f":"Languages!A25","v":"Talep Edilen Teslim Tarihi"}]
[null,null,{"$f":"Languages!A21","v":"E-posta Adresi"}]
[null,null,{"$f":"Languages!A22","v":"Adet"},null,null,null,null,null,null,{"$f":"Languages!A23","v":"adet"}]
[]
[null,null,{"$f":"Languages!A26","v":"Kumanda Sistemi Modeli"},null,null,null,null,null,null,null,null,null,null,null,null,null,null,null,null,null,null,{"$f":"Languages!A31","v":"Asansör Standardı"}]
[null,null,"U-STO-SCSL",null,null,null,{"$f":"VLOOKUP(C12,AU216:AV223,2,FALSE)","v":"Katlarla ve kabinle seri haberleşmeli (Tek ya da çift buton 48 durağa kadar)"}]
[null,null,{"$f":"Languages!A28","v":"Kumanda Türü"},null,null,null,null,null,null,null,null,null,{"$f":"Languages!A29","v":"Tek / Grup Çalışma"},null,null,null,null,null,{"$f":"Languages!A30","v":"Tahrik Türü"}]
[]
[]
[]
[null,null,{"$f":"Languages!A32","v":"Genel Özellikler"}]
[null,null,{"$f":"Languages!A33","v":"Durak Sayısı"},null,null,null,null,{"$f":"Languages!A36","v":"Durak"},null,null,null,{"$f":"Languages!A37","v":"Güç / Akım"},null,null,null,"kW",null,{"$f":"Languages!A38","v":"Kabin Kapasitesi"},null,null,null,null,"Kg"]
[null,null,{"$f":"Languages!A34","v":"Motor / Hidrolik"},null,null,null,null,null,null,null,null,null,null,null,null,"A",null,{"$f":"Languages!A39","v":"Kabin Hızı"},null,null,null,null,"m/s"]
[]
[null,null,{"$f":"Languages!A35","v":"Konum Bilgisi"},null,null,null,null,null,null,null,null,null,null,null,null,null,null,{"$f":"Languages!A40","v":"Motor Fren Gerilimi"}]
[]
[]
[null,null,{"$f":"Languages!A41","v":"Kapılar"},null,null,null,null,null,null,null,{"$f":"Languages!A45","v":"2. Kapı (eğer varsa)"}]
[null,null,{"$f":"Languages!A42","v":"Otomatik Kapı"},null,null,null,null,null,null,null,{"$f":"Languages!A46","v":"Otomatik Kapı"},null,null,null,null,null,null,{"$f":"Languages!A50","v":"Lirpomp Gerilimi"}]
[null,null,{"$f":"Languages!A43","v":"Kat Kapısı"},null,null,null,null,null,null,null,{"$f":"Languages!A47","v":"Kat Kapısı"},null,null,null,null,null,null,{"$f":"Languages!A51","v":"3-Faz Kapı Mot. için 3VF"}]
[null,null,{"$f":"Languages!A44","v":"Kapı Mot Volt"},null,null,null,null,null,null,null,{"$f":"Languages!A48","v":"Kapı Mot Volt"}]
[null,null,null,null,null,null,null,null,null,null,null,null,{"$f":"IF(M25=\"\",\"\",Languages!A49)","v":""}]
[]
[null,null,{"$f":"Languages!A52","v":"VVVF Asansörler için Inverter Seçimi"}]
[null,null,null,null,{"$f":"Languages!A53","v":"İnverter Modeli"},null,null,null,null,null,null,null,null,null,null,null,null,{"$f":"Languages!A54","v":"Enkoder Kartı"}]
[]
[null,null,null,null,{"$f":"IF(OR(C12=\"U-STO-SCSL\",C12=\"U-STO-PCPL\",C12=\"U-STO-PCSL\"),Languages!A98,\"\")","v":"Tümleşik ürün seçtiniz lütfen boş bırakınız."}]
[]
[null,null,{"$f":"Languages!A55","v":"Opsiyonlar & Diğer Özellikler"}]
[null,null,{"$f":"Languages!A56","v":"Kata Getirme Cihazı"},null,null,null,null,null,{"$f":"Languages!A59","v":"Kumanda Panosu Tipi"},null,null,null,null,{"$f":"Languages!A61","v":"Kontaktör Tipi"},null,null,null,null,null,null,{"$f":"Languages!A64","v":"3VF için Ekranlı Mot Kabl (7M)"}]
[null,null,null,null,null,null,null,null,null,null,null,null,null,"Siemens, Schneider or equivalent",null,null,null,null,null,null,{"$f":"Languages!A65","v":"Elektrik Dağıtım Panosu"}]
[null,null,{"$f":"Languages!A57","v":"Valf"},null,null,null,null,null,null,null,null,null,null,{"$f":"Languages!A62","v":"Ön Tetik. Reg. Bobin Gerilimi"}]
[null,null,{"$f":"Languages!A58","v":"Emniyet Devresi"},null,null,null,null,null,{"$f":"Languages!A60","v":"Kum. Panosu için Baza"},null,null,null,null,{"$f":"Languages!A63","v":"Seviyeleme & Erken Kapı Açma"}]
[null,null,null,null,null,null,null,null,null,null,null,null,null,null,null,{"$f":"IF(AH45=\"NO\",\"I don't need +-20mm for UCM ve EN81+A3 in this lift\",\"\")","v":""},null,null,null,null,null,null,{"$f":"Languages!A66","v":"Revizyon kutusu dahildir."}]
[]
[null,null,{"$f":"Languages!A67","v":"Kat ve Kabin Butonyerleri"},null,null,null,null,null,null,null,null,null,null,null,null,null,null,null,null,null,null,null,null,null,null,null,{"$f":"IF(COUNTA(V45:W50)+COUNTA(N45)<1,\"\",Languages!A90)","v":""}]
[]
[null,null,{"$f":"Languages!A68","v":"COP"},null,null,null,null,null,null,null,null,{"$f":"Languages!A71","v":"LOPs"},null,null,null,null,null,{"$f":"Languages!A97","v":"Hazır Tesisat"}]
[null,null,{"$f":"Languages!A69","v":"Gösterge"},null,null,null,null,null,null,null,null,{"$f":"Languages!A69","v":"Gösterge"},null,null,null,null,null,{"$f":"Languages!A91","v":"Makine Dairesi Tesisatı"}]
[null,null,{"$f":"Languages!A70","v":"Montaj Şekli"},null,null,null,null,null,null,null,null,{"$f":"Languages!A70","v":"Montaj Şekli"},null,null,null,null,null,{"$f":"Languages!A92","v":"Kuyu İçi Tesisatı"}]
[null,null,{"$f":"Languages!A72","v":"Durak İsimleri"},null,null,null,null,null,null,null,null,{"$f":"Languages!A76","v":"Kat Butonyeri için Lazer Logo"},null,null,null,null,null,{"$f":"Languages!A93","v":"Fleksibıl Kablo"}]
[null,null,{"$f":"Languages!A74","v":"Işıklandırmalı Firma Logosu"},null,null,null,null,null,null,null,null,{"$f":"Languages!A77","v":"SC24 Kartı için Kablo Seti"},null,null,null,null,null,{"$f":"Languages!A94","v":"Kuyu İçi Aydınlatması (LED)"}]
[null,null,{"$f":"Languages!A73","v":"Anons Modülü için SD Kart"},null,null,null,null,null,null,null,null,{"$f":"Languages!A78","v":"SL Kartları için Kablo Seti"},null,null,null,null,null,{"$f":"Languages!A95","v":"Kuyu Dibi Kutusu & Kuyu Dibi Kabloları"}]
[null,null,{"$f":"Languages!A75","v":"2. İntercom Modülü"},null,null,null,null,null,null,null,null,{"$f":"Languages!A79","v":"Kabin But. & Rev. Kut. Bağ. Kabl."},null,null,null,null,null,{"$f":"Languages!A96","v":"Kuyu Dibi Kablosu (KP'ndan)"}]
[]
[null,null,{"$f":"Languages!A80","v":"Boş bırakılan VAR/YOK seçimleri 'YOK' kabul edilecektir."}]
[]
[]
[]
[]
[]
[]
[]
[]
[]
[]
[]
[]
[]
[]
[]
[]
[]
[null,null,{"$f":"Languages!A81","v":"Notlar"}]
[]
[]
[]
[null,null,null,null,null,null,null,null,null,null,null,null,null,null,{"$f":"Languages!A82","v":"Sipariş Onayı"}]
[]
[]
[]
[]
[]
[]
[]
[]
[null,null,null,null,null,null,null,null,null,null,null,null,null,null,null,null,null,null,null,null,null,null,null,null,null,null,null,null,null,null,null,null,null,null,null,null,null,null,null,null,null,null,null,null,null,null,null,null,"TR",null,"EN",null,"RU"]
[null,null,null,null,null,null,null,null,null,null,null,null,null,null,null,null,null,null,null,null,null,null,null,null,null,null,null,null,null,null,null,null,null,null,null,null,null,null,null,null,null,null,null,null,null,null,{"$f":"IF($AA$4=\"TR\",AW84,IF($AA$4=\"EN\",AY84,IF($AA$4=\"RU\",BA84,\"HATA!\")))","v":"VAR"},null,"VAR",null,"YES",null,"ДА"]
[null,null,null,null,null,null,null,null,null,null,null,null,null,null,null,null,null,null,null,null,null,null,null,null,null,null,null,null,null,null,null,null,null,null,null,null,null,null,null,null,null,null,null,null,null,null,{"$f":"IF($AA$4=\"TR\",AW85,IF($AA$4=\"EN\",AY85,IF($AA$4=\"RU\",BA85,\"HATA!\")))","v":"YOK"},null,"YOK",null,"NO",null,"НЕТ"]
[null,null,null,null,null,null,null,null,null,null,null,null,null,null,null,null,null,null,null,null,null,null,null,null,null,null,null,null,null,null,null,null,null,null,null,null,null,null,null,null,null,null,null,null,null,null,"Kontaktörler",null,"Kontaktörler",null,"Contactors",null,"Контаторы"]
[null,null,null,null,null,null,null,null,null,null,null,null,null,null,null,null,null,null,null,null,null,null,null,null,null,null,null,null,null,null,null,null,null,null,null,null,null,null,null,null,null,null,null,null,null,null,"Siemens, Schneider veya benzeri",null,"Siemens, Schneider veya benzeri",null,"Siemens, Schneider or equivalent",null,"Siemens, Schneider or equivalent"]
[]
[]
[null,null,null,null,null,null,null,null,null,null,null,null,null,null,null,null,null,null,null,null,null,null,null,null,null,null,null,null,null,null,null,null,null,null,null,null,null,null,null,null,null,null,null,null,null,null,{"$f":"IF($AA$4=\"TR\",AW90,IF($AA$4=\"EN\",AY90,IF($AA$4=\"RU\",BA90,\"HATA!\")))","v":"Kabin Hızı"},null,"Kabin Hızı",null,"Car Speed",null,"Скорость лифта"]
[null,null,null,null,null,null,null,null,null,null,null,null,null,null,null,null,null,null,null,null,null,null,null,null,null,null,null,null,null,null,null,null,null,null,null,null,null,null,null,null,null,null,null,null,null,null,0.5,null,0.5,null,0.5,null,0.5]
[null,null,null,null,null,null,null,null,null,null,null,null,null,null,null,null,null,null,null,null,null,null,null,null,null,null,null,null,null,null,null,null,null,null,null,null,null,null,null,null,null,null,null,null,null,null,0.63,null,0.63,null,0.63,null,0.63]
[null,null,null,null,null,null,null,null,null,null,null,null,null,null,null,null,null,null,null,null,null,null,null,null,null,null,null,null,null,null,null,null,null,null,null,null,null,null,null,null,null,null,null,null,null,null,1,null,1,null,1,null,1]
[null,null,null,null,null,null,null,null,null,null,null,null,null,null,null,null,null,null,null,null,null,null,null,null,null,null,null,null,null,null,null,null,null,null,null,null,null,null,null,null,null,null,null,null,null,null,{"$f":"IF($AA$4=\"TR\",AW94,IF($AA$4=\"EN\",AY94,IF($AA$4=\"RU\",BA94,\"HATA!\")))","v":1.6},null,1.6,null,1.6,null,1.6]
[null,null,null,null,null,null,null,null,null,null,null,null,null,null,null,null,null,null,null,null,null,null,null,null,null,null,null,null,null,null,null,null,null,null,null,null,null,null,null,null,null,null,null,null,null,null,1.75,null,1.75,null,1.75,null,1.75]
[null,null,null,null,null,null,null,null,null,null,null,null,null,null,null,null,null,null,null,null,null,null,null,null,null,null,null,null,null,null,null,null,null,null,null,null,null,null,null,null,null,null,null,null,null,null,2,null,2,null,2,null,2]
[null,null,null,null,null,null,null,null,null,null,null,null,null,null,null,null,null,null,null,null,null,null,null,null,null,null,null,null,null,null,null,null,null,null,null,null,null,null,null,null,null,null,null,null,null,null,{"$f":"IF($AA$4=\"TR\",AW97,IF($AA$4=\"EN\",AY97,IF($AA$4=\"RU\",BA97,\"HATA!\")))","v":2.5},null,2.5,null,2.5,null,2.5]
[null,null,null,null,null,null,null,null,null,null,null,null,null,null,null,null,null,null,null,null,null,null,null,null,null,null,null,null,null,null,null,null,null,null,null,null,null,null,null,null,null,null,null,null,null,null,3,null,3,null,3,null,3]
[]
[null,null,null,null,null,null,null,null,null,null,null,null,null,null,null,null,null,null,null,null,null,null,null,null,null,null,null,null,null,null,null,null,null,null,null,null,null,null,null,null,null,null,null,null,null,null,{"$f":"IF($AA$4=\"TR\",AW100,IF($AA$4=\"EN\",AY100,IF($AA$4=\"RU\",BA100,\"HATA!\")))","v":"Kabin Kapasitesi"},null,"Kabin Kapasitesi",null,"Car Capacity",null,"Грузоподъёмность"]
[null,null,null,null,null,null,null,null,null,null,null,null,null,null,null,null,null,null,null,null,null,null,null,null,null,null,null,null,null,null,null,null,null,null,null,null,null,null,null,null,null,null,null,null,null,null,320,null,320,null,320,null,320]
[null,null,null,null,null,null,null,null,null,null,null,null,null,null,null,null,null,null,null,null,null,null,null,null,null,null,null,null,null,null,null,null,null,null,null,null,null,null,null,null,null,null,null,null,null,null,450,null,450,null,450,null,450]
[null,null,null,null,null,null,null,null,null,null,null,null,null,null,null,null,null,null,null,null,null,null,null,null,null,null,null,null,null,null,null,null,null,null,null,null,null,null,null,null,null,null,null,null,null,null,630,null,630,null,630,null,630]
[null,null,null,null,null,null,null,null,null,null,null,null,null,null,null,null,null,null,null,null,null,null,null,null,null,null,null,null,null,null,null,null,null,null,null,null,null,null,null,null,null,null,null,null,null,null,750,null,750,null,750,null,750]
[null,null,null,null,null,null,null,null,null,null,null,null,null,null,null,null,null,null,null,null,null,null,null,null,null,null,null,null,null,null,null,null,null,null,null,null,null,null,null,null,null,null,null,null,null,null,800,null,800,null,800,null,800]
[null,null,null,null,null,null,null,null,null,null,null,null,null,null,null,null,null,null,null,null,null,null,null,null,null,null,null,null,null,null,null,null,null,null,null,null,null,null,null,null,null,null,null,null,null,null,1000,null,1000,null,1000,null,1000]
[null,null,null,null,null,null,null,null,null,null,null,null,null,null,null,null,null,null,null,null,null,null,null,null,null,null,null,null,null,null,null,null,null,null,null,null,null,null,null,null,null,null,null,null,null,null,1200,null,1200,null,1200,null,1200]
[null,null,null,null,null,null,null,null,null,null,null,null,null,null,null,null,null,null,null,null,null,null,null,null,null,null,null,null,null,null,null,null,null,null,null,null,null,null,null,null,null,null,null,null,null,null,1600,null,1600,null,1600,null,1600]
[null,null,null,null,null,null,null,null,null,null,null,null,null,null,null,null,null,null,null,null,null,null,null,null,null,null,null,null,null,null,null,null,null,null,null,null,null,null,null,null,null,null,null,null,null,null,2000,null,2000,null,2000,null,2000]
[null,null,null,null,null,null,null,null,null,null,null,null,null,null,null,null,null,null,null,null,null,null,null,null,null,null,null,null,null,null,null,null,null,null,null,null,null,null,null,null,null,null,null,null,null,null,3000,null,3000,null,3000,null,3000]
[null,null,null,null,null,null,null,null,null,null,null,null,null,null,null,null,null,null,null,null,null,null,null,null,null,null,null,null,null,null,null,null,null,null,null,null,null,null,null,null,null,null,null,null,null,null,4000,null,4000,null,4000,null,4000]
[]
[null,null,null,null,null,null,null,null,null,null,null,null,null,null,null,null,null,null,null,null,null,null,null,null,null,null,null,null,null,null,null,null,null,null,null,null,null,null,null,null,null,null,null,null,null,null,{"$f":"IF($AA$4=\"TR\",AW113,IF($AA$4=\"EN\",AY113,IF($AA$4=\"RU\",BA113,\"HATA!\")))","v":"Motor Fren Gerilimi"},null,"Motor Fren Gerilimi",null,"Motor Brake",null,"Тормозная катушка"]
[null,null,null,null,null,null,null,null,null,null,null,null,null,null,null,null,null,null,null,null,null,null,null,null,null,null,null,null,null,null,null,null,null,null,null,null,null,null,null,null,null,null,null,null,null,null,"60 V DC",null,"60 V DC",null,"60 V DC",null,"60 V DC"]
[null,null,null,null,null,null,null,null,null,null,null,null,null,null,null,null,null,null,null,null,null,null,null,null,null,null,null,null,null,null,null,null,null,null,null,null,null,null,null,null,null,null,null,null,null,null,"110 V DC",null,"110 V DC",null,"110 V DC",null,"110 V DC"]
[null,null,null,null,null,null,null,null,null,null,null,null,null,null,null,null,null,null,null,null,null,null,null,null,null,null,null,null,null,null,null,null,null,null,null,null,null,null,null,null,null,null,null,null,null,null,"190 V DC",null,"190 V DC",null,"190 V DC",null,"190 V DC"]
[null,null,null,null,null,null,null,null,null,null,null,null,null,null,null,null,null,null,null,null,null,null,null,null,null,null,null,null,null,null,null,null,null,null,null,null,null,null,null,null,null,null,null,null,null,null,"207 V DC",null,"207 V DC",null,"207 V DC",null,"207 V DC"]
[]
[null,null,null,null,null,null,null,null,null,null,null,null,null,null,null,null,null,null,null,null,null,null,null,null,null,null,null,null,null,null,null,null,null,null,null,null,null,null,null,null,null,null,null,null,null,null,{"$f":"IF($AA$4=\"TR\",AW119,IF($AA$4=\"EN\",AY119,IF($AA$4=\"RU\",BA119,\"HATA!\")))","v":"Valf"},null,"Valf",null,"Valve",null,"Клапан"]
[null,null,null,null,null,null,null,null,null,null,null,null,null,null,null,null,null,null,null,null,null,null,null,null,null,null,null,null,null,null,null,null,null,null,null,null,null,null,null,null,null,null,null,null,null,null,"12 V DC",null,"12 V DC",null,"12 V DC",null,"12 V DC"]
[null,null,null,null,null,null,null,null,null,null,null,null,null,null,null,null,null,null,null,null,null,null,null,null,null,null,null,null,null,null,null,null,null,null,null,null,null,null,null,null,null,null,null,null,null,null,"48 V DC",null,"48 V DC",null,"48 V DC",null,"48 V DC"]
[]
[null,null,null,null,null,null,null,null,null,null,null,null,null,null,null,null,null,null,null,null,null,null,null,null,null,null,null,null,null,null,null,null,null,null,null,null,null,null,null,null,null,null,null,null,null,null,{"$f":"IF($AA$4=\"TR\",AW123,IF($AA$4=\"EN\",AY123,IF($AA$4=\"RU\",BA123,\"HATA!\")))","v":"Lirpomp"},null,"Lirpomp",null,"Door Lock Magnet",null,"Дверной замок"]
[null,null,null,null,null,null,null,null,null,null,null,null,null,null,null,null,null,null,null,null,null,null,null,null,null,null,null,null,null,null,null,null,null,null,null,null,null,null,null,null,null,null,null,null,null,null,"YOK",null,"YOK",null,"NONE",null,"НЕТ"]
[null,null,null,null,null,null,null,null,null,null,null,null,null,null,null,null,null,null,null,null,null,null,null,null,null,null,null,null,null,null,null,null,null,null,null,null,null,null,null,null,null,null,null,null,null,null,"48 V DC",null,"48 V DC",null,"48 V DC",null,"48 V DC"]
[null,null,null,null,null,null,null,null,null,null,null,null,null,null,null,null,null,null,null,null,null,null,null,null,null,null,null,null,null,null,null,null,null,null,null,null,null,null,null,null,null,null,null,null,null,null,"190 V DC",null,"190 V DC",null,"190 V DC",null,"190 V DC"]
[]
[null,null,null,null,null,null,null,null,null,null,null,null,null,null,null,null,null,null,null,null,null,null,null,null,null,null,null,null,null,null,null,null,null,null,null,null,null,null,null,null,null,null,null,null,null,null,{"$f":"IF($AA$4=\"TR\",AW128,IF($AA$4=\"EN\",AY128,IF($AA$4=\"RU\",BA128,\"HATA!\")))","v":"Makine Markası"},null,"Makine Markası",null,"Machine Brand",null,"Модель Лебедки"]
[null,null,null,null,null,null,null,null,null,null,null,null,null,null,null,null,null,null,null,null,null,null,null,null,null,null,null,null,null,null,null,null,null,null,null,null,null,null,null,null,null,null,null,null,null,null,{"$f":"IF($AA$4=\"TR\",AW129,IF($AA$4=\"EN\",AY129,IF($AA$4=\"RU\",BA129,\"HATA!\")))","v":"A.SASSI"},null,"A.SASSI",null,"A.SASSI",null,"A.SASSI"]
[null,null,null,null,null,null,null,null,null,null,null,null,null,null,null,null,null,null,null,null,null,null,null,null,null,null,null,null,null,null,null,null,null,null,null,null,null,null,null,null,null,null,null,null,null,null,"AKAR",null,"AKAR",null,"AKAR",null,"AKAR"]
[null,null,null,null,null,null,null,null,null,null,null,null,null,null,null,null,null,null,null,null,null,null,null,null,null,null,null,null,null,null,null,null,null,null,null,null,null,null,null,null,null,null,null,null,null,null,"AKAY",null,"AKAY",null,"AKAY",null,"AKAY"]
[null,null,null,null,null,null,null,null,null,null,null,null,null,null,null,null,null,null,null,null,null,null,null,null,null,null,null,null,null,null,null,null,null,null,null,null,null,null,null,null,null,null,null,null,null,null,"AKİŞ",null,"AKİŞ",null,"AKİŞ",null,"AKİŞ"]
[null,null,null,null,null,null,null,null,null,null,null,null,null,null,null,null,null,null,null,null,null,null,null,null,null,null,null,null,null,null,null,null,null,null,null,null,null,null,null,null,null,null,null,null,null,null,"ARK",null,"ARK",null,"ARK",null,"ARK"]
[null,null,null,null,null,null,null,null,null,null,null,null,null,null,null,null,null,null,null,null,null,null,null,null,null,null,null,null,null,null,null,null,null,null,null,null,null,null,null,null,null,null,null,null,null,null,"ASTES",null,"ASTES",null,"ASTES",null,"ASTES"]
[null,null,null,null,null,null,null,null,null,null,null,null,null,null,null,null,null,null,null,null,null,null,null,null,null,null,null,null,null,null,null,null,null,null,null,null,null,null,null,null,null,null,null,null,null,null,"EKER",null,"EKER",null,"EKER",null,"EKER"]
[null,null,null,null,null,null,null,null,null,null,null,null,null,null,null,null,null,null,null,null,null,null,null,null,null,null,null,null,null,null,null,null,null,null,null,null,null,null,null,null,null,null,null,null,null,null,"EMF",null,"EMF",null,"EMF",null,"EMF"]
[null,null,null,null,null,null,null,null,null,null,null,null,null,null,null,null,null,null,null,null,null,null,null,null,null,null,null,null,null,null,null,null,null,null,null,null,null,null,null,null,null,null,null,null,null,null,"ENGİN",null,"ENGİN",null,"ENGİN",null,"ENGİN"]
[null,null,null,null,null,null,null,null,null,null,null,null,null,null,null,null,null,null,null,null,null,null,null,null,null,null,null,null,null,null,null,null,null,null,null,null,null,null,null,null,null,null,null,null,null,null,"FAXI",null,"FAXI",null,"FAXI",null,"FAXI"]
[null,null,null,null,null,null,null,null,null,null,null,null,null,null,null,null,null,null,null,null,null,null,null,null,null,null,null,null,null,null,null,null,null,null,null,null,null,null,null,null,null,null,null,null,null,null,"GEM",null,"GEM",null,"GEM",null,"GEM"]
[null,null,null,null,null,null,null,null,null,null,null,null,null,null,null,null,null,null,null,null,null,null,null,null,null,null,null,null,null,null,null,null,null,null,null,null,null,null,null,null,null,null,null,null,null,null,"JUPA",null,"JUPA",null,"JUPA",null,"JUPA"]
[null,null,null,null,null,null,null,null,null,null,null,null,null,null,null,null,null,null,null,null,null,null,null,null,null,null,null,null,null,null,null,null,null,null,null,null,null,null,null,null,null,null,null,null,null,null,"LAFERT",null,"LAFERT",null,"LAFERT",null,"LAFERT"]
[null,null,null,null,null,null,null,null,null,null,null,null,null,null,null,null,null,null,null,null,null,null,null,null,null,null,null,null,null,null,null,null,null,null,null,null,null,null,null,null,null,null,null,null,null,null,"LANCOR",null,"LANCOR",null,"LANCOR",null,"LANCOR"]
[null,null,null,null,null,null,null,null,null,null,null,null,null,null,null,null,null,null,null,null,null,null,null,null,null,null,null,null,null,null,null,null,null,null,null,null,null,null,null,null,null,null,null,null,null,null,"LEROY SOMER",null,"LEROY SOMER",null,"LEROY SOMER",null,"LEROY SOMER"]
[null,null,null,null,null,null,null,null,null,null,null,null,null,null,null,null,null,null,null,null,null,null,null,null,null,null,null,null,null,null,null,null,null,null,null,null,null,null,null,null,null,null,null,null,null,null,"LIFT EQUIP",null,"LIFT EQUIP",null,"LIFT EQUIP",null,"LIFT EQUIP"]
[null,null,null,null,null,null,null,null,null,null,null,null,null,null,null,null,null,null,null,null,null,null,null,null,null,null,null,null,null,null,null,null,null,null,null,null,null,null,null,null,null,null,null,null,null,null,"MONTANARI",null,"MONTANARI",null,"MONTANARI",null,"MONTANARI"]
[null,null,null,null,null,null,null,null,null,null,null,null,null,null,null,null,null,null,null,null,null,null,null,null,null,null,null,null,null,null,null,null,null,null,null,null,null,null,null,null,null,null,null,null,null,null,"NAGEL",null,"NAGEL",null,"NAGEL",null,"NAGEL"]
[null,null,null,null,null,null,null,null,null,null,null,null,null,null,null,null,null,null,null,null,null,null,null,null,null,null,null,null,null,null,null,null,null,null,null,null,null,null,null,null,null,null,null,null,null,null,"PERMAGSA",null,"PERMAGSA",null,"PERMAGSA",null,"PERMAGSA"]
[null,null,null,null,null,null,null,null,null,null,null,null,null,null,null,null,null,null,null,null,null,null,null,null,null,null,null,null,null,null,null,null,null,null,null,null,null,null,null,null,null,null,null,null,null,null,"SCHINDLER",null,"SCHINDLER",null,"SCHINDLER",null,"SCHINDLER"]
[null,null,null,null,null,null,null,null,null,null,null,null,null,null,null,null,null,null,null,null,null,null,null,null,null,null,null,null,null,null,null,null,null,null,null,null,null,null,null,null,null,null,null,null,null,null,"SICOR",null,"SICOR",null,"SICOR",null,"SICOR"]
[null,null,null,null,null,null,null,null,null,null,null,null,null,null,null,null,null,null,null,null,null,null,null,null,null,null,null,null,null,null,null,null,null,null,null,null,null,null,null,null,null,null,null,null,null,null,"TOP GEAR",null,"TOP GEAR",null,"TOP GEAR",null,"TOP GEAR"]
[null,null,null,null,null,null,null,null,null,null,null,null,null,null,null,null,null,null,null,null,null,null,null,null,null,null,null,null,null,null,null,null,null,null,null,null,null,null,null,null,null,null,null,null,null,null,"TORIN",null,"TORIN",null,"TORIN",null,"TORIN"]
[null,null,null,null,null,null,null,null,null,null,null,null,null,null,null,null,null,null,null,null,null,null,null,null,null,null,null,null,null,null,null,null,null,null,null,null,null,null,null,null,null,null,null,null,null,null,"WITTUR",null,"WITTUR",null,"WITTUR",null,"WITTUR"]
[null,null,null,null,null,null,null,null,null,null,null,null,null,null,null,null,null,null,null,null,null,null,null,null,null,null,null,null,null,null,null,null,null,null,null,null,null,null,null,null,null,null,null,null,null,null,"XINDA",null,"XINDA",null,"XINDA",null,"XINDA"]
[null,null,null,null,null,null,null,null,null,null,null,null,null,null,null,null,null,null,null,null,null,null,null,null,null,null,null,null,null,null,null,null,null,null,null,null,null,null,null,null,null,null,null,null,null,null,"ZIEHL ABEGG",null,"ZIEHL ABEGG",null,"ZIEHL ABEGG",null,"ZIEHL ABEGG"]
[null,null,null,null,null,null,null,null,null,null,null,null,null,null,null,null,null,null,null,null,null,null,null,null,null,null,null,null,null,null,null,null,null,null,null,null,null,null,null,null,null,null,null,null,null,null,"Hidrolik Markası",null,"Hidrolik Markası",null,"Hydraulic Brand",null,"Модель Гидравлики"]
[null,null,null,null,null,null,null,null,null,null,null,null,null,null,null,null,null,null,null,null,null,null,null,null,null,null,null,null,null,null,null,null,null,null,null,null,null,null,null,null,null,null,null,null,null,null,"BIOFIAL",null,"BIOFIAL",null,"BIOFIAL",null,"BIOFIAL"]
[null,null,null,null,null,null,null,null,null,null,null,null,null,null,null,null,null,null,null,null,null,null,null,null,null,null,null,null,null,null,null,null,null,null,null,null,null,null,null,null,null,null,null,null,null,null,"BUCHER",null,"BUCHER",null,"BUCHER",null,"BUCHER"]
[null,null,null,null,null,null,null,null,null,null,null,null,null,null,null,null,null,null,null,null,null,null,null,null,null,null,null,null,null,null,null,null,null,null,null,null,null,null,null,null,null,null,null,null,null,null,"GMV 3010 VALF",null,"GMV 3010 VALF",null,"GMV 3010 VALF",null,"GMV 3010 VALF"]
[null,null,null,null,null,null,null,null,null,null,null,null,null,null,null,null,null,null,null,null,null,null,null,null,null,null,null,null,null,null,null,null,null,null,null,null,null,null,null,null,null,null,null,null,null,null,"GMV 3100 VALF",null,"GMV 3100 VALF",null,"GMV 3100 VALF",null,"GMV 3100 VALF"]
[null,null,null,null,null,null,null,null,null,null,null,null,null,null,null,null,null,null,null,null,null,null,null,null,null,null,null,null,null,null,null,null,null,null,null,null,null,null,null,null,null,null,null,null,null,null,"GMV ENG VALF",null,"GMV ENG VALF",null,"GMV ENG VALF",null,"GMV ENG VALF"]
[null,null,null,null,null,null,null,null,null,null,null,null,null,null,null,null,null,null,null,null,null,null,null,null,null,null,null,null,null,null,null,null,null,null,null,null,null,null,null,null,null,null,null,null,null,null,"IGV",null,"IGV",null,"IGV",null,"IGV"]
[null,null,null,null,null,null,null,null,null,null,null,null,null,null,null,null,null,null,null,null,null,null,null,null,null,null,null,null,null,null,null,null,null,null,null,null,null,null,null,null,null,null,null,null,null,null,"KLEEMANN",null,"KLEEMANN",null,"KLEEMANN",null,"KLEEMANN"]
[null,null,null,null,null,null,null,null,null,null,null,null,null,null,null,null,null,null,null,null,null,null,null,null,null,null,null,null,null,null,null,null,null,null,null,null,null,null,null,null,null,null,null,null,null,null,"M0RE",null,"M0RE",null,"M0RE",null,"M0RE"]
[null,null,null,null,null,null,null,null,null,null,null,null,null,null,null,null,null,null,null,null,null,null,null,null,null,null,null,null,null,null,null,null,null,null,null,null,null,null,null,null,null,null,null,null,null,null,"MORİS",null,"MORİS",null,"MORİS",null,"MORİS"]
[]
[null,null,null,null,null,null,null,null,null,null,null,null,null,null,null,null,null,null,null,null,null,null,null,null,null,null,null,null,null,null,null,null,null,null,null,null,null,null,null,null,null,null,null,null,null,null,{"$f":"IF($AA$4=\"TR\",AW166,IF($AA$4=\"EN\",AY166,IF($AA$4=\"RU\",BA166,\"HATA!\")))","v":"Kapı Markası"},null,"Kapı Markası",null,"Door Brand",null,"Модель Дверного Привода"]
[null,null,null,null,null,null,null,null,null,null,null,null,null,null,null,null,null,null,null,null,null,null,null,null,null,null,null,null,null,null,null,null,null,null,null,null,null,null,null,null,null,null,null,null,null,null,"AKE OSMA",null,"AKE OSMA",null,"AKE OSMA",null,"AKE OSMA"]
[null,null,null,null,null,null,null,null,null,null,null,null,null,null,null,null,null,null,null,null,null,null,null,null,null,null,null,null,null,null,null,null,null,null,null,null,null,null,null,null,null,null,null,null,null,null,"ÇAĞIN CRİPPA",null,"ÇAĞIN CRİPPA",null,"ÇAĞIN CRİPPA",null,"ÇAĞIN CRİPPA"]
[null,null,null,null,null,null,null,null,null,null,null,null,null,null,null,null,null,null,null,null,null,null,null,null,null,null,null,null,null,null,null,null,null,null,null,null,null,null,null,null,null,null,null,null,null,null,"DEMAS",null,"DEMAS",null,"DEMAS",null,"DEMAS"]
[null,null,null,null,null,null,null,null,null,null,null,null,null,null,null,null,null,null,null,null,null,null,null,null,null,null,null,null,null,null,null,null,null,null,null,null,null,null,null,null,null,null,null,null,null,null,"EMAY",null,"EMAY",null,"EMAY",null,"EMAY"]
[null,null,null,null,null,null,null,null,null,null,null,null,null,null,null,null,null,null,null,null,null,null,null,null,null,null,null,null,null,null,null,null,null,null,null,null,null,null,null,null,null,null,null,null,null,null,"FABRE",null,"FABRE",null,"FABRE",null,"FABRE"]
[null,null,null,null,null,null,null,null,null,null,null,null,null,null,null,null,null,null,null,null,null,null,null,null,null,null,null,null,null,null,null,null,null,null,null,null,null,null,null,null,null,null,null,null,null,null,"FERMATOR 3VF",null,"FERMATOR 3VF",null,"FERMATOR 3VF",null,"FERMATOR 3VF"]
[null,null,null,null,null,null,null,null,null,null,null,null,null,null,null,null,null,null,null,null,null,null,null,null,null,null,null,null,null,null,null,null,null,null,null,null,null,null,null,null,null,null,null,null,null,null,"HAS",null,"HAS",null,"HAS",null,"HAS"]
[null,null,null,null,null,null,null,null,null,null,null,null,null,null,null,null,null,null,null,null,null,null,null,null,null,null,null,null,null,null,null,null,null,null,null,null,null,null,null,null,null,null,null,null,null,null,"HÜRAS",null,"HÜRAS",null,"HÜRAS",null,"HÜRAS"]
[null,null,null,null,null,null,null,null,null,null,null,null,null,null,null,null,null,null,null,null,null,null,null,null,null,null,null,null,null,null,null,null,null,null,null,null,null,null,null,null,null,null,null,null,null,null,"KALIOTIS",null,"KALIOTIS",null,"KALIOTIS",null,"KALIOTIS"]
[null,null,null,null,null,null,null,null,null,null,null,null,null,null,null,null,null,null,null,null,null,null,null,null,null,null,null,null,null,null,null,null,null,null,null,null,null,null,null,null,null,null,null,null,null,null,"KATLANIR",null,"KATLANIR",null,"KATLANIR",null,"KATLANIR"]
[null,null,null,null,null,null,null,null,null,null,null,null,null,null,null,null,null,null,null,null,null,null,null,null,null,null,null,null,null,null,null,null,null,null,null,null,null,null,null,null,null,null,null,null,null,null,"KLEFER",null,"KLEFER",null,"KLEFER",null,"KLEFER"]
[null,null,null,null,null,null,null,null,null,null,null,null,null,null,null,null,null,null,null,null,null,null,null,null,null,null,null,null,null,null,null,null,null,null,null,null,null,null,null,null,null,null,null,null,null,null,"MEKİSAN",null,"MEKİSAN",null,"MEKİSAN",null,"MEKİSAN"]
[null,null,null,null,null,null,null,null,null,null,null,null,null,null,null,null,null,null,null,null,null,null,null,null,null,null,null,null,null,null,null,null,null,null,null,null,null,null,null,null,null,null,null,null,null,null,"MERİH",null,"MERİH",null,"MERİH",null,"MERİH"]
[null,null,null,null,null,null,null,null,null,null,null,null,null,null,null,null,null,null,null,null,null,null,null,null,null,null,null,null,null,null,null,null,null,null,null,null,null,null,null,null,null,null,null,null,null,null,"PRİSMA",null,"PRİSMA",null,"PRİSMA",null,"PRİSMA"]
[null,null,null,null,null,null,null,null,null,null,null,null,null,null,null,null,null,null,null,null,null,null,null,null,null,null,null,null,null,null,null,null,null,null,null,null,null,null,null,null,null,null,null,null,null,null,"PROLIFT",null,"PROLIFT",null,"PROLIFT",null,"PROLIFT"]
[null,null,null,null,null,null,null,null,null,null,null,null,null,null,null,null,null,null,null,null,null,null,null,null,null,null,null,null,null,null,null,null,null,null,null,null,null,null,null,null,null,null,null,null,null,null,"SEMATIC",null,"SEMATIC",null,"SEMATIC",null,"SEMATIC"]
[null,null,null,null,null,null,null,null,null,null,null,null,null,null,null,null,null,null,null,null,null,null,null,null,null,null,null,null,null,null,null,null,null,null,null,null,null,null,null,null,null,null,null,null,null,null,"TROMP",null,"TROMP",null,"TROMP",null,"TROMP"]
[null,null,null,null,null,null,null,null,null,null,null,null,null,null,null,null,null,null,null,null,null,null,null,null,null,null,null,null,null,null,null,null,null,null,null,null,null,null,null,null,null,null,null,null,null,null,"WITTUR HYDRA +",null,"WITTUR HYDRA +",null,"WITTUR HYDRA +",null,"WITTUR HYDRA +"]
[null,null,null,null,null,null,null,null,null,null,null,null,null,null,null,null,null,null,null,null,null,null,null,null,null,null,null,null,null,null,null,null,null,null,null,null,null,null,null,null,null,null,null,null,null,null,"WITTUR AUGUSTA",null,"WITTUR AUGUSTA",null,"WITTUR AUGUSTA",null,"WITTUR AUGUSTA"]
[null,null,null,null,null,null,null,null,null,null,null,null,null,null,null,null,null,null,null,null,null,null,null,null,null,null,null,null,null,null,null,null,null,null,null,null,null,null,null,null,null,null,null,null,null,null,"YOK",null,"YOK",null,"NONE",null,"NONE"]
[null,null,null,null,null,null,null,null,null,null,null,null,null,null,null,null,null,null,null,null,null,null,null,null,null,null,null,null,null,null,null,null,null,null,null,null,null,null,null,null,null,null,null,null,null,null,"YÜKSELİŞ",null,"YÜKSELİŞ",null,"YÜKSELİŞ",null,"YÜKSELİŞ"]
[null,null,null,null,null,null,null,null,null,null,null,null,null,null,null,null,null,null,null,null,null,null,null,null,null,null,null,null,null,null,null,null,null,null,null,null,null,null,null,null,null,null,null,null,null,null,"Kat Kapısı",null,"Kat Kapısı",null,"Landing Door",null,"Этажные Двери"]
[null,null,null,null,null,null,null,null,null,null,null,null,null,null,null,null,null,null,null,null,null,null,null,null,null,null,null,null,null,null,null,null,null,null,null,null,null,null,null,null,null,null,null,null,null,null,"Aynı",null,"Aynı",null,"Same",null,"Такие же"]
[null,null,null,null,null,null,null,null,null,null,null,null,null,null,null,null,null,null,null,null,null,null,null,null,null,null,null,null,null,null,null,null,null,null,null,null,null,null,null,null,null,null,null,null,null,null,"Çarpma Kapı",null,"Çarpma Kapı",null,"Manual",null,"Распашные"]
[]
[null,null,null,null,null,null,null,null,null,null,null,null,null,null,null,null,null,null,null,null,null,null,null,null,null,null,null,null,null,null,null,null,null,null,null,null,null,null,null,null,null,null,null,null,null,null,{"$f":"IF($AA$4=\"TR\",AW192,IF($AA$4=\"EN\",AY192,IF($AA$4=\"RU\",BA192,\"HATA!\")))","v":"Regülatör Bobin Gerilimi"},null,"Regülatör Bobin Gerilimi",null,"Speed Governer Voltage",null,"Ограничитель скорости"]
[null,null,null,null,null,null,null,null,null,null,null,null,null,null,null,null,null,null,null,null,null,null,null,null,null,null,null,null,null,null,null,null,null,null,null,null,null,null,null,null,null,null,null,null,null,null,"YOK",null,"YOK",null,"NONE",null,"НЕТ"]
[null,null,null,null,null,null,null,null,null,null,null,null,null,null,null,null,null,null,null,null,null,null,null,null,null,null,null,null,null,null,null,null,null,null,null,null,null,null,null,null,null,null,null,null,null,null,"190 V DC",null,"190 V DC",null,"190 V DC",null,"190 V DC"]
[null,null,null,null,null,null,null,null,null,null,null,null,null,null,null,null,null,null,null,null,null,null,null,null,null,null,null,null,null,null,null,null,null,null,null,null,null,null,null,null,null,null,null,null,null,null,"24 V DC",null,"24 V DC",null,"24 V DC",null,"24 V DC"]
[null,null,null,null,null,null,null,null,null,null,null,null,null,null,null,null,null,null,null,null,null,null,null,null,null,null,null,null,null,null,null,null,null,null,null,null,null,null,null,null,null,null,null,null,null,null,"12 V DC",null,"12 V DC",null,"12 V DC",null,"12 V DC"]
[]
[null,null,null,null,null,null,null,null,null,null,null,null,null,null,null,null,null,null,null,null,null,null,null,null,null,null,null,null,null,null,null,null,null,null,null,null,null,null,null,null,null,null,null,null,null,null,{"$f":"IF($AA$4=\"TR\",AW198,IF($AA$4=\"EN\",AY198,IF($AA$4=\"RU\",BA198,\"HATA!\")))","v":"İnverter Modelleri"},null,"İnverter Modelleri",null,"Inverter Models",null,"Модель Инвертора"]
[null,null,null,null,null,null,null,null,null,null,null,null,null,null,null,null,null,null,null,null,null,null,null,null,null,null,null,null,null,null,null,null,null,null,null,null,null,null,null,null,null,null,null,null,null,null,"MIK-EL MD-STO Serisi",null,"MIK-EL MD-STO Serisi",null,"MIK-EL MD-STO Series",null,"MIK-EL MD-STO Series"]
[null,null,null,null,null,null,null,null,null,null,null,null,null,null,null,null,null,null,null,null,null,null,null,null,null,null,null,null,null,null,null,null,null,null,null,null,null,null,null,null,null,null,null,null,null,null,"MD-STO 15A",null,"MD-STO 15A",null,"MD-STO 15A",null,"MD-STO 15A"]
[null,null,null,null,null,null,null,null,null,null,null,null,null,null,null,null,null,null,null,null,null,null,null,null,null,null,null,null,null,null,null,null,null,null,null,null,null,null,null,null,null,null,null,null,null,null,"MD-STO 18A",null,"MD-STO 18A",null,"MD-STO 18A",null,"MD-STO 18A"]
[null,null,null,null,null,null,null,null,null,null,null,null,null,null,null,null,null,null,null,null,null,null,null,null,null,null,null,null,null,null,null,null,null,null,null,null,null,null,null,null,null,null,null,null,null,null,"MD-STO 22A",null,"MD-STO 22A",null,"MD-STO 22A",null,"MD-STO 22A"]
[null,null,null,null,null,null,null,null,null,null,null,null,null,null,null,null,null,null,null,null,null,null,null,null,null,null,null,null,null,null,null,null,null,null,null,null,null,null,null,null,null,null,null,null,null,null,"MD-STO 26A",null,"MD-STO 26A",null,"MD-STO 26A",null,"MD-STO 26A"]
[null,null,null,null,null,null,null,null,null,null,null,null,null,null,null,null,null,null,null,null,null,null,null,null,null,null,null,null,null,null,null,null,null,null,null,null,null,null,null,null,null,null,null,null,null,null,"MD-STO 34A",null,"MD-STO 34A",null,"MD-STO 34A",null,"MD-STO 34A"]
[null,null,null,null,null,null,null,null,null,null,null,null,null,null,null,null,null,null,null,null,null,null,null,null,null,null,null,null,null,null,null,null,null,null,null,null,null,null,null,null,null,null,null,null,null,null,"MD-STO 50A",null,"MD-STO 50A",null,"MD-STO 50A",null,"MD-STO 50A"]
[null,null,null,null,null,null,null,null,null,null,null,null,null,null,null,null,null,null,null,null,null,null,null,null,null,null,null,null,null,null,null,null,null,null,null,null,null,null,null,null,null,null,null,null,null,null,"MD-STO 66A",null,"MD-STO 66A",null,"MD-STO 66A",null,"MD-STO 66A"]
[]
[null,null,null,null,null,null,null,null,null,null,null,null,null,null,null,null,null,null,null,null,null,null,null,null,null,null,null,null,null,null,null,null,null,null,null,null,null,null,null,null,null,null,null,null,null,null,{"$f":"IF($AA$4=\"TR\",AW208,IF($AA$4=\"EN\",AY208,IF($AA$4=\"RU\",BA208,\"HATA!\")))","v":"Enkoder Kartı"},null,"Enkoder Kartı",null,"Encoder Card",null,"Экнодерная плата"]
[null,null,null,null,null,null,null,null,null,null,null,null,null,null,null,null,null,null,null,null,null,null,null,null,null,null,null,null,null,null,null,null,null,null,null,null,null,null,null,null,null,null,null,null,null,null,"MD-STO için",null,"MD-STO için",null,"for MD-STO",null,"для MD-STO"]
[null,null,null,null,null,null,null,null,null,null,null,null,null,null,null,null,null,null,null,null,null,null,null,null,null,null,null,null,null,null,null,null,null,null,null,null,null,null,null,null,null,null,null,null,null,null,"MD İnkremental",null,"MD İnkremental",null,"MD Incremental",null,"MD Incremental"]
[null,null,null,null,null,null,null,null,null,null,null,null,null,null,null,null,null,null,null,null,null,null,null,null,null,null,null,null,null,null,null,null,null,null,null,null,null,null,null,null,null,null,null,null,null,null,"EDT En-Dat",null,"EDT En-Dat",null,"EDT En-Dat",null,"EDT En-Dat"]
[null,null,null,null,null,null,null,null,null,null,null,null,null,null,null,null,null,null,null,null,null,null,null,null,null,null,null,null,null,null,null,null,null,null,null,null,null,null,null,null,null,null,null,null,null,null,"SCH Sin-Cos",null,"SCH Sin-Cos",null,"SCH Sin-Cos",null,"SCH Sin-Cos"]
[null,null,null,null,null,null,null,null,null,null,null,null,null,null,null,null,null,null,null,null,null,null,null,null,null,null,null,null,null,null,null,null,null,null,null,null,null,null,null,null,null,null,null,null,null,null,"YOK - Açık Çevrim",null,"YOK - Açık Çevrim",null,"NONE - Open Loop",null,"НЕТ - Пусто"]
[]
[null,null,null,null,null,null,null,null,null,null,null,null,null,null,null,null,null,null,null,null,null,null,null,null,null,null,null,null,null,null,null,null,null,null,null,null,null,null,null,null,null,null,null,null,null,null,{"$f":"IF($AA$4=\"TR\",AW215,IF($AA$4=\"EN\",AY215,IF($AA$4=\"RU\",BA215,\"HATA!\")))","v":"Kumanda Sistemi"},null,"Kumanda Sistemi",null,"Controllers",null,"Станция Управления"]
[null,null,null,null,null,null,null,null,null,null,null,null,null,null,null,null,null,null,null,null,null,null,null,null,null,null,null,null,null,null,null,null,null,null,null,null,null,null,null,null,null,null,null,null,null,null,"U-STO-SCSL","Katlarla ve kabinle seri haberleşmeli (Tek ya da çift buton 48 durağa kadar)","U-STO-SCSL","Katlarla ve kabinle seri haberleşmeli (Tek ya da çift buton 48 durağa kadar)","U-STO-SCSL","Serial with car, COP & landings via Can-Bus (max 48 stops single or double button)","U-STO-SCSL","Серийное подключение постов приказа и вызовызовов по средством Can-Bus (максимум 48 остановок, одна или две кнопки в постах вызова)"]
[null,null,null,null,null,null,null,null,null,null,null,null,null,null,null,null,null,null,null,null,null,null,null,null,null,null,null,null,null,null,null,null,null,null,null,null,null,null,null,null,null,null,null,null,null,null,{"$f":"IF($AA$4=\"TR\",AW217,IF($AA$4=\"EN\",AY217,IF($AA$4=\"RU\",BA217,\"HATA!\")))","v":"U-STO-PCPL"},{"$f":"IF($AA$4=\"TR\",AX217,IF($AA$4=\"EN\",AZ217,IF($AA$4=\"RU\",BB217,\"HATA!\")))","v":"Katlarla ve kabin butonyeriyle paralel, kabin üstü rev. kutusu ile seri haberleşmeli (tek buton 24, çift buton 13 durağa kadar)"},"U-STO-PCPL","Katlarla ve kabin butonyeriyle paralel, kabin üstü rev. kutusu ile seri haberleşmeli (tek buton 24, çift buton 13 durağa kadar)","U-STO-PCPL","Parallel with COP and LOPs, serial with car top inspection box (max 24 stps single, 13 stps double button)","U-STO-PCPL","Параллельное подключение постов приказа и вызовов, серийное с блоком ревизии кабины (максимум 24 остановки с одной кнопкой вызова и 13 остановок с двумя кнопками вызова)"]
[null,null,null,null,null,null,null,null,null,null,null,null,null,null,null,null,null,null,null,null,null,null,null,null,null,null,null,null,null,null,null,null,null,null,null,null,null,null,null,null,null,null,null,null,null,null,"U-STO-PCSL","Katlarla ve kabin üstü rev. kutusu ile seri, kabin butonyeriyle paralel haberleşmeli (tek buton 24, çift buton 13 durağa kadar)","U-STO-PCSL","Katlarla ve kabin üstü rev. kutusu ile seri, kabin butonyeriyle paralel haberleşmeli (tek buton 24, çift buton 13 durağa kadar)","U-STO-PCSL","Serial with car top inspection box and LOPs, parallel with COP (max 24 stops single or double button)","U-STO-PCSL","Серийное подключение  с блоком ревизии кабины и постами вызова, параллельное подключение с постом приказов (максимум 24 остановки)"]
[null,null,null,null,null,null,null,null,null,null,null,null,null,null,null,null,null,null,null,null,null,null,null,null,null,null,null,null,null,null,null,null,null,null,null,null,null,null,null,null,null,null,null,null,null,null,{"$f":"IF($AA$4=\"TR\",AW219,IF($AA$4=\"EN\",AY219,IF($AA$4=\"RU\",BA219,\"HATA!\")))","v":"SX-ULTRA-SCSL"},{"$f":"IF($AA$4=\"TR\",AX219,IF($AA$4=\"EN\",AZ219,IF($AA$4=\"RU\",BB219,\"HATA!\")))","v":"Katlarla ve kabinle seri haberleşmeli (Tek ya da çift buton 24 durağa kadar)"},"SX-ULTRA-SCSL","Katlarla ve kabinle seri haberleşmeli (Tek ya da çift buton 24 durağa kadar)","SX-ULTRA-SCSL","Serial with car, COP & landings via Can-Bus (max 48 stops single or double button)","SX-ULTRA-SCSL","Серийное подкл. Пльта приказов, COP и кнопок вызова Can-Bus (макс. 48 ост. С одной или двумя кнопами)"]
[null,null,null,null,null,null,null,null,null,null,null,null,null,null,null,null,null,null,null,null,null,null,null,null,null,null,null,null,null,null,null,null,null,null,null,null,null,null,null,null,null,null,null,null,null,null,"SX-ULTRA-PCPL","Katlarla ve kabin butonyeriyle paralel, kabin üstü rev. kutusu ile seri haberleşmeli (tek buton 24, çift buton 13 durağa kadar)","SX-ULTRA-PCPL","Katlarla ve kabin butonyeriyle paralel, kabin üstü rev. kutusu ile seri haberleşmeli (tek buton 24, çift buton 13 durağa kadar)","SX-ULTRA-PCPL","Parallel with COP and LOPs, serial with car top inspection box (max 24 stps single, 13 stps double button)","SX-ULTRA-PCPL","Серийное подкл. пульта приаз. Can-Bus (макс. 24 ост. С одной, 13 ост. С двумя кнопками)"]
[null,null,null,null,null,null,null,null,null,null,null,null,null,null,null,null,null,null,null,null,null,null,null,null,null,null,null,null,null,null,null,null,null,null,null,null,null,null,null,null,null,null,null,null,null,null,"SX-CLASSIC","Katlarla paralel, kabinle seri haberleşmeli (tek buton 16, çift buton 9, Hidrolik 7 durağa kadar)","SX-CLASSIC","Katlarla paralel, kabinle seri haberleşmeli (tek buton 16, çift buton 9, Hidrolik 7 durağa kadar)","SX-CLASSIC","Serial comm. with car via Can-Bus (max 16 stps single, 9 stps double button, Hyd 7 stps)","SX-CLASSIC","Серийное подкл. Can-Bus (макс. 16 ост. один., 9 ост. двойная кнопка, 7 ост. для гидрав.)"]
[null,null,null,null,null,null,null,null,null,null,null,null,null,null,null,null,null,null,null,null,null,null,null,null,null,null,null,null,null,null,null,null,null,null,null,null,null,null,null,null,null,null,null,null,null,null,"SX-PLUS","Katlarla ve kabinle seri haberleşmeli (Tek ya da çift buton 24 durağa kadar)","SX-PLUS","Katlarla ve kabinle seri haberleşmeli (Tek ya da çift buton 24 durağa kadar)","SX-PLUS","Serial comm. with car, COP & landings via Can-Bus (max 24 stops single or double button)","SX-PLUS","Серийное подкл. Пльта приказов, COP и кнопок вызова Can-Bus (макс. 24 ост. С одной или двумя кнопами)"]
[null,null,null,null,null,null,null,null,null,null,null,null,null,null,null,null,null,null,null,null,null,null,null,null,null,null,null,null,null,null,null,null,null,null,null,null,null,null,null,null,null,null,null,null,null,null,"S-MS","Küçük yük asansörleri için (5 durağa kadar çağır-gönder kumanda)","S-MS","Küçük yük asansörleri için (5 durağa kadar çağır-gönder kumanda)","S-MS","Daumbwaiter (call-send, max 5 stops)","S-MS","Не большой подъемник (этажные кнопки приказа, макс. 5 ост.)"]
[]
[null,null,null,null,null,null,null,null,null,null,null,null,null,null,null,null,null,null,null,null,null,null,null,null,null,null,null,null,null,null,null,null,null,null,null,null,null,null,null,null,null,null,null,null,null,null,{"$f":"IF($AA$4=\"TR\",AW225,IF($AA$4=\"EN\",AY225,IF($AA$4=\"RU\",BA225,\"HATA!\")))","v":"Kumanda Tipleri"},null,"Kumanda Tipleri",null,"Control Types",null,"Control Types"]
[null,null,null,null,null,null,null,null,null,null,null,null,null,null,null,null,null,null,null,null,null,null,null,null,null,null,null,null,null,null,null,null,null,null,null,null,null,null,null,null,null,null,null,null,null,null,"Tek buton inişte toplamalı (KSA)",null,"Tek buton inişte toplamalı (KSA)",null,"Single button down-collective (KSA)",null,"Одинарная кнопка в низ (KSA)"]
[null,null,null,null,null,null,null,null,null,null,null,null,null,null,null,null,null,null,null,null,null,null,null,null,null,null,null,null,null,null,null,null,null,null,null,null,null,null,null,null,null,null,null,null,null,null,"Çift buton çift yönde toplamalı (KS)",null,"Çift buton çift yönde toplamalı (KS)",null,"Double button selective-collective (KS)",null,"Двойная кнопка селектив. (KS)"]
[]
[null,null,null,null,null,null,null,null,null,null,null,null,null,null,null,null,null,null,null,null,null,null,null,null,null,null,null,null,null,null,null,null,null,null,null,null,null,null,null,null,null,null,null,null,null,null,{"$f":"IF($AA$4=\"TR\",AW229,IF($AA$4=\"EN\",AY229,IF($AA$4=\"RU\",BA229,\"HATA!\")))","v":"Tek / Grup"},null,"Tek / Grup",null,"Single / Group",null,"Одиночный / В Группе"]
[null,null,null,null,null,null,null,null,null,null,null,null,null,null,null,null,null,null,null,null,null,null,null,null,null,null,null,null,null,null,null,null,null,null,null,null,null,null,null,null,null,null,null,null,null,null,"Simpleks",null,"Simpleks",null,"Simplex",null,"Симплекс (один)"]
[null,null,null,null,null,null,null,null,null,null,null,null,null,null,null,null,null,null,null,null,null,null,null,null,null,null,null,null,null,null,null,null,null,null,null,null,null,null,null,null,null,null,null,null,null,null,"Dubleks (2 asansör birlikte)",null,"Dubleks (2 asansör birlikte)",null,"Duplex (2 lifts in a group)",null,"Дуплес (2 лифта в группе)"]
[null,null,null,null,null,null,null,null,null,null,null,null,null,null,null,null,null,null,null,null,null,null,null,null,null,null,null,null,null,null,null,null,null,null,null,null,null,null,null,null,null,null,null,null,null,null,"Tripleks (3 asansör birlikte)",null,"Tripleks (3 asansör birlikte)",null,"Triplex (3 lifts in a group)",null,"Триплекс (3 лифта в группе)"]
[null,null,null,null,null,null,null,null,null,null,null,null,null,null,null,null,null,null,null,null,null,null,null,null,null,null,null,null,null,null,null,null,null,null,null,null,null,null,null,null,null,null,null,null,null,null,"Quattro plex (4 asansör birlikte)",null,"Quattro plex (4 asansör birlikte)",null,"Quattro plex (4 lifts in a group)",null,"Кватро (4 лифта в группе)"]
[]
[null,null,null,null,null,null,null,null,null,null,null,null,null,null,null,null,null,null,null,null,null,null,null,null,null,null,null,null,null,null,null,null,null,null,null,null,null,null,null,null,null,null,null,null,null,null,{"$f":"IF($AA$4=\"TR\",AW235,IF($AA$4=\"EN\",AY235,IF($AA$4=\"RU\",BA235,\"HATA!\")))","v":"Tahrik Türü"},null,"Tahrik Türü",null,"Traction",null,"Привод"]
[null,null,null,null,null,null,null,null,null,null,null,null,null,null,null,null,null,null,null,null,null,null,null,null,null,null,null,null,null,null,null,null,null,null,null,null,null,null,null,null,null,null,null,null,null,null,"VVVF Dişlisiz",null,"VVVF Dişlisiz",null,"VVVF Gearless",null,"VVVF Без редуктора"]
[null,null,null,null,null,null,null,null,null,null,null,null,null,null,null,null,null,null,null,null,null,null,null,null,null,null,null,null,null,null,null,null,null,null,null,null,null,null,null,null,null,null,null,null,null,null,"VVVF Dişlili",null,"VVVF Dişlili",null,"VVVF Geared",null,"VVVF С редуктором"]
[null,null,null,null,null,null,null,null,null,null,null,null,null,null,null,null,null,null,null,null,null,null,null,null,null,null,null,null,null,null,null,null,null,null,null,null,null,null,null,null,null,null,null,null,null,null,"Hidrolik (Yıldız-Üçgen)",null,"Hidrolik (Yıldız-Üçgen)",null,"Hydraulic (Star-Delta)",null,"Hydraulic (Star-Delta)"]
[null,null,null,null,null,null,null,null,null,null,null,null,null,null,null,null,null,null,null,null,null,null,null,null,null,null,null,null,null,null,null,null,null,null,null,null,null,null,null,null,null,null,null,null,null,null,"Hidrolik (Soft Start'a Uygun)",null,"Hidrolik (Soft Start'a Uygun)",null,"Hydraulic (Ready for Soft Starter)",null,"Hydraulic (Ready for Soft Starter)"]
[null,null,null,null,null,null,null,null,null,null,null,null,null,null,null,null,null,null,null,null,null,null,null,null,null,null,null,null,null,null,null,null,null,null,null,null,null,null,null,null,null,null,null,null,null,null,"Hidrolik (Doğrudan Yol Verme)",null,"Hidrolik (Doğrudan Yol Verme)",null,"Hydraulic (Direct Start)",null,"Hydraulic (Direct Start)"]
[null,null,null,null,null,null,null,null,null,null,null,null,null,null,null,null,null,null,null,null,null,null,null,null,null,null,null,null,null,null,null,null,null,null,null,null,null,null,null,null,null,null,null,null,null,null,"Çift Hızlı",null,"Çift Hızlı",null,"Two Speed",null,"Двух соростной"]
[null,null,null,null,null,null,null,null,null,null,null,null,null,null,null,null,null,null,null,null,null,null,null,null,null,null,null,null,null,null,null,null,null,null,null,null,null,null,null,null,null,null,null,null,null,null,"Tek Hızlı",null,"Tek Hızlı",null,"Single Speed",null,"Односкоростной"]
[]
[null,null,null,null,null,null,null,null,null,null,null,null,null,null,null,null,null,null,null,null,null,null,null,null,null,null,null,null,null,null,null,null,null,null,null,null,null,null,null,null,null,null,null,null,null,null,{"$f":"IF($AA$4=\"TR\",AW244,IF($AA$4=\"EN\",AY244,IF($AA$4=\"RU\",BA244,\"HATA!\")))","v":"Konum Bilgisi"},null,"Konum Bilgisi",null,"Shaft Copy",null,"Копирование шахты"]
[null,null,null,null,null,null,null,null,null,null,null,null,null,null,null,null,null,null,null,null,null,null,null,null,null,null,null,null,null,null,null,null,null,null,null,null,null,null,null,null,null,null,null,null,null,null,"Enkoderli Kuyu Kopyalama",null,"Enkoderli Kuyu Kopyalama",null,"Shaft Copying via motor encoder",null,"Копирование шахты Энкодэром"]
[null,null,null,null,null,null,null,null,null,null,null,null,null,null,null,null,null,null,null,null,null,null,null,null,null,null,null,null,null,null,null,null,null,null,null,null,null,null,null,null,null,null,null,null,null,null,"Sayıcı Şalter",null,"Sayıcı Şalter",null,"Counter Switch (Mikopulse)",null,"Датчик (Mikopulse)"]
[null,null,null,null,null,null,null,null,null,null,null,null,null,null,null,null,null,null,null,null,null,null,null,null,null,null,null,null,null,null,null,null,null,null,null,null,null,null,null,null,null,null,null,null,null,null,"Grey kod",null,"Grey kod",null,"Gray Code",null,"Грей код"]
[]
[null,null,null,null,null,null,null,null,null,null,null,null,null,null,null,null,null,null,null,null,null,null,null,null,null,null,null,null,null,null,null,null,null,null,null,null,null,null,null,null,null,null,null,null,null,null,{"$f":"IF($AA$4=\"TR\",AW249,IF($AA$4=\"EN\",AY249,IF($AA$4=\"RU\",BA249,\"HATA!\")))","v":"Otomatik Kapı"},null,"Otomatik Kapı",null,"Oto Door",null,"Дверной привод"]
[null,null,null,null,null,null,null,null,null,null,null,null,null,null,null,null,null,null,null,null,null,null,null,null,null,null,null,null,null,null,null,null,null,null,null,null,null,null,null,null,null,null,null,null,null,null,"220 V AC",null,"220 V AC",null,"220 V AC",null,"220 V AC"]
[null,null,null,null,null,null,null,null,null,null,null,null,null,null,null,null,null,null,null,null,null,null,null,null,null,null,null,null,null,null,null,null,null,null,null,null,null,null,null,null,null,null,null,null,null,null,"24 V DC",null,"24 V DC",null,"24 V DC",null,"24 V DC"]
[null,null,null,null,null,null,null,null,null,null,null,null,null,null,null,null,null,null,null,null,null,null,null,null,null,null,null,null,null,null,null,null,null,null,null,null,null,null,null,null,null,null,null,null,null,null,"3 FAZ",null,"3 FAZ",null,"3 PHASE",null,"3 PHASE"]
[null,null,null,null,null,null,null,null,null,null,null,null,null,null,null,null,null,null,null,null,null,null,null,null,null,null,null,null,null,null,null,null,null,null,null,null,null,null,null,null,null,null,null,null,null,null,"Diğer",null,"Diğer",null,"Other",null,"Другой"]
[]
[null,null,null,null,null,null,null,null,null,null,null,null,null,null,null,null,null,null,null,null,null,null,null,null,null,null,null,null,null,null,null,null,null,null,null,null,null,null,null,null,null,null,null,null,null,null,{"$f":"IF($AA$4=\"TR\",AW255,IF($AA$4=\"EN\",AY255,IF($AA$4=\"RU\",BA255,\"HATA!\")))","v":"ARD"},null,"ARD",null,"ARD",null,"ARD"]
[null,null,null,null,null,null,null,null,null,null,null,null,null,null,null,null,null,null,null,null,null,null,null,null,null,null,null,null,null,null,null,null,null,null,null,null,null,null,null,null,null,null,null,null,null,null,"UPS",null,"UPS",null,"UPS",null,"UPS"]
[null,null,null,null,null,null,null,null,null,null,null,null,null,null,null,null,null,null,null,null,null,null,null,null,null,null,null,null,null,null,null,null,null,null,null,null,null,null,null,null,null,null,null,null,null,null,"Servosan Kurtaran",null,"Servosan Kurtaran",null,"Servosan ARD",null,"Servosan ARD"]
[null,null,null,null,null,null,null,null,null,null,null,null,null,null,null,null,null,null,null,null,null,null,null,null,null,null,null,null,null,null,null,null,null,null,null,null,null,null,null,null,null,null,null,null,null,null,"UPS'ye Uygun",null,"UPS'ye Uygun",null,"Ready for UPS",null,"Ready for UPS"]
[null,null,null,null,null,null,null,null,null,null,null,null,null,null,null,null,null,null,null,null,null,null,null,null,null,null,null,null,null,null,null,null,null,null,null,null,null,null,null,null,null,null,null,null,null,null,"Yok",null,"Yok",null,"None",null,"Нет"]
[]
[null,null,null,null,null,null,null,null,null,null,null,null,null,null,null,null,null,null,null,null,null,null,null,null,null,null,null,null,null,null,null,null,null,null,null,null,null,null,null,null,null,null,null,null,null,null,{"$f":"IF($AA$4=\"TR\",AW261,IF($AA$4=\"EN\",AY261,IF($AA$4=\"RU\",BA261,\"HATA!\")))","v":"KP Tipi"},null,"KP Tipi",null,"CP Types",null,"Тип СУ"]
[null,null,null,null,null,null,null,null,null,null,null,null,null,null,null,null,null,null,null,null,null,null,null,null,null,null,null,null,null,null,null,null,null,null,null,null,null,null,null,null,null,null,null,null,null,null,"Standart Pano (95*45*25 cm)",null,"Standart Pano (95*45*25 cm)",null,"Standard Type  (95*45*25 cm)",null,"Стандартный  (95*45*25 cm)"]
[null,null,null,null,null,null,null,null,null,null,null,null,null,null,null,null,null,null,null,null,null,null,null,null,null,null,null,null,null,null,null,null,null,null,null,null,null,null,null,null,null,null,null,null,null,null,"Uzun Pano (210*40-45*25 cm)",null,"Uzun Pano (210*40-45*25 cm)",null,"Long Type (210*40-45*25 cm)",null,"Высокий (210*40-45*25 cm)"]
[null,null,null,null,null,null,null,null,null,null,null,null,null,null,null,null,null,null,null,null,null,null,null,null,null,null,null,null,null,null,null,null,null,null,null,null,null,null,null,null,null,null,null,null,null,null,"Slim Pano (Kapı Kasasında)",null,"Slim Pano (Kapı Kasasında)",null,"Slim Type (Inside the Door Frame)",null,"Узкий"]
[null,null,null,null,null,null,null,null,null,null,null,null,null,null,null,null,null,null,null,null,null,null,null,null,null,null,null,null,null,null,null,null,null,null,null,null,null,null,null,null,null,null,null,null,null,null,"Özel Ölçülü Pano",null,"Özel Ölçülü Pano",null,"Custom Size",null,"Другой размер"]
[]
[null,null,null,null,null,null,null,null,null,null,null,null,null,null,null,null,null,null,null,null,null,null,null,null,null,null,null,null,null,null,null,null,null,null,null,null,null,null,null,null,null,null,null,null,null,null,{"$f":"IF($AA$4=\"TR\",AW267,IF($AA$4=\"EN\",AY267,IF($AA$4=\"RU\",BA267,\"HATA!\")))","v":"Standart"},null,"Standart",null,"Standards",null,"Стандарты"]
[null,null,null,null,null,null,null,null,null,null,null,null,null,null,null,null,null,null,null,null,null,null,null,null,null,null,null,null,null,null,null,null,null,null,null,null,null,null,null,null,null,null,null,null,null,null,"EN81-20'ye Uygun",null,"EN81-20'ye Uygun",null,"EN81-20 Compatible",null,"EN81-20 Compatible"]
[null,null,null,null,null,null,null,null,null,null,null,null,null,null,null,null,null,null,null,null,null,null,null,null,null,null,null,null,null,null,null,null,null,null,null,null,null,null,null,null,null,null,null,null,null,null,"EN81+A3'e Uygun",null,"EN81+A3'e Uygun",null,"EN81+A3 Compatible",null,"EN81+A3 Compatible"]
[null,null,null,null,null,null,null,null,null,null,null,null,null,null,null,null,null,null,null,null,null,null,null,null,null,null,null,null,null,null,null,null,null,null,null,null,null,null,null,null,null,null,null,null,null,null,"Diğer",null,"Diğer",null,"Other",null,"Другой"]
[]
[null,null,null,null,null,null,null,null,null,null,null,null,null,null,null,null,null,null,null,null,null,null,null,null,null,null,null,null,null,null,null,null,null,null,null,null,null,null,null,null,null,null,null,null,null,null,{"$f":"IF($AA$4=\"TR\",AW272,IF($AA$4=\"EN\",AY272,IF($AA$4=\"RU\",BA272,\"HATA!\")))","v":"Emniyet Devresi"},null,"Emniyet Devresi",null,"Safety Circuit",null,"Цепь безопасности"]
[null,null,null,null,null,null,null,null,null,null,null,null,null,null,null,null,null,null,null,null,null,null,null,null,null,null,null,null,null,null,null,null,null,null,null,null,null,null,null,null,null,null,null,null,null,null,"230 V AC",null,"230 V AC",null,"230 V AC",null,"230 V AC"]
[null,null,null,null,null,null,null,null,null,null,null,null,null,null,null,null,null,null,null,null,null,null,null,null,null,null,null,null,null,null,null,null,null,null,null,null,null,null,null,null,null,null,null,null,null,null,"110 V AC",null,"110 V AC",null,"110 V AC",null,"110 V AC"]
[null,null,null,null,null,null,null,null,null,null,null,null,null,null,null,null,null,null,null,null,null,null,null,null,null,null,null,null,null,null,null,null,null,null,null,null,null,null,null,null,null,null,null,null,null,null,"48 V AC",null,"48 V AC",null,"48 V AC",null,"48 V AC"]
[null,null,null,null,null,null,null,null,null,null,null,null,null,null,null,null,null,null,null,null,null,null,null,null,null,null,null,null,null,null,null,null,null,null,null,null,null,null,null,null,null,null,null,null,null,null,"24 V AC",null,"24 V AC",null,"24 V AC",null,"24 V AC"]
[null,null,null,null,null,null,null,null,null,null,null,null,null,null,null,null,null,null,null,null,null,null,null,null,null,null,null,null,null,null,null,null,null,null,null,null,null,null,null,null,null,null,null,null,null,null,"48 V DC",null,"48 V DC",null,"48 V DC",null,"48 V DC"]
[null,null,null,null,null,null,null,null,null,null,null,null,null,null,null,null,null,null,null,null,null,null,null,null,null,null,null,null,null,null,null,null,null,null,null,null,null,null,null,null,null,null,null,null,null,null,"24 V DC",null,"24 V DC",null,"24 V DC",null,"24 V DC"]
[]
[null,null,null,null,null,null,null,null,null,null,null,null,null,null,null,null,null,null,null,null,null,null,null,null,null,null,null,null,null,null,null,null,null,null,null,null,null,null,null,null,null,null,null,null,null,null,{"$f":"IF($AA$4=\"TR\",AW280,IF($AA$4=\"EN\",AY280,IF($AA$4=\"RU\",BA280,\"HATA!\")))","v":"COPs"},null,"COPs",null,"COPs",null,"Пост приказа"]
[null,null,null,null,null,null,null,null,null,null,null,null,null,null,null,null,null,null,null,null,null,null,null,null,null,null,null,null,null,null,null,null,null,null,null,null,null,null,null,null,null,null,null,null,null,null,"Tam Boy",null,"Tam Boy",null,"Full Height",null,"От пола до потолка"]
[null,null,null,null,null,null,null,null,null,null,null,null,null,null,null,null,null,null,null,null,null,null,null,null,null,null,null,null,null,null,null,null,null,null,null,null,null,null,null,null,null,null,null,null,null,null,{"$f":"IF($AA$4=\"TR\",AW282,IF($AA$4=\"EN\",AY282,IF($AA$4=\"RU\",BA282,\"HATA!\")))","v":"Yarım Boy"},null,"Yarım Boy",null,"Half Height",null,"Короткий"]
[null,null,null,null,null,null,null,null,null,null,null,null,null,null,null,null,null,null,null,null,null,null,null,null,null,null,null,null,null,null,null,null,null,null,null,null,null,null,null,null,null,null,null,null,null,null,"1xSC24 Kartı",null,"1xSC24 Kartı",null,"1xSC24 Board",null,"1xSC24 платы"]
[null,null,null,null,null,null,null,null,null,null,null,null,null,null,null,null,null,null,null,null,null,null,null,null,null,null,null,null,null,null,null,null,null,null,null,null,null,null,null,null,null,null,null,null,null,null,"2xSC24 Kartı",null,"2xSC24 Kartı",null,"2xSC24 Boards",null,"2xSC24 платы"]
[null,null,null,null,null,null,null,null,null,null,null,null,null,null,null,null,null,null,null,null,null,null,null,null,null,null,null,null,null,null,null,null,null,null,null,null,null,null,null,null,null,null,null,null,null,null,"Gösterge",null,"Gösterge",null,"Display",null,"Дисплей"]
[null,null,null,null,null,null,null,null,null,null,null,null,null,null,null,null,null,null,null,null,null,null,null,null,null,null,null,null,null,null,null,null,null,null,null,null,null,null,null,null,null,null,null,null,null,null,"Dot-matris",null,"Dot-matris",null,"Dot-matrix",null,"Точечная матрица"]
[null,null,null,null,null,null,null,null,null,null,null,null,null,null,null,null,null,null,null,null,null,null,null,null,null,null,null,null,null,null,null,null,null,null,null,null,null,null,null,null,null,null,null,null,null,null,"TFT",null,"TFT",null,"TFT",null,"TFT"]
[null,null,null,null,null,null,null,null,null,null,null,null,null,null,null,null,null,null,null,null,null,null,null,null,null,null,null,null,null,null,null,null,null,null,null,null,null,null,null,null,null,null,null,null,null,null,{"$f":"IF($AA$4=\"TR\",AW288,IF($AA$4=\"EN\",AY288,IF($AA$4=\"RU\",BA288,\"HATA!\")))","v":"LCD"},null,"LCD",null,"LCD",null,"LCD"]
[null,null,null,null,null,null,null,null,null,null,null,null,null,null,null,null,null,null,null,null,null,null,null,null,null,null,null,null,null,null,null,null,null,null,null,null,null,null,null,null,null,null,null,null,null,null,"7-seg",null,"7-seg",null,"7-seg",null,"7-сегментный"]
[null,null,null,null,null,null,null,null,null,null,null,null,null,null,null,null,null,null,null,null,null,null,null,null,null,null,null,null,null,null,null,null,null,null,null,null,null,null,null,null,null,null,null,null,null,null,{"$f":"IF($AA$4=\"TR\",AW290,IF($AA$4=\"EN\",AY290,IF($AA$4=\"RU\",BA290,\"HATA!\")))","v":"Montaj Şekli"},null,"Montaj Şekli",null,"Mounting Type",null,"Тип монтажа"]
[null,null,null,null,null,null,null,null,null,null,null,null,null,null,null,null,null,null,null,null,null,null,null,null,null,null,null,null,null,null,null,null,null,null,null,null,null,null,null,null,null,null,null,null,null,null,"Sıva Üstü",null,"Sıva Üstü",null,"Surface Mounted",null,"Монтаж по верх стены"]
[null,null,null,null,null,null,null,null,null,null,null,null,null,null,null,null,null,null,null,null,null,null,null,null,null,null,null,null,null,null,null,null,null,null,null,null,null,null,null,null,null,null,null,null,null,null,"Sıva Altı",null,"Sıva Altı",null,"Flush Mounted",null,"Монтаж в стену"]
[]
[]
[]
[]
[]
[]
[]
[]
[]
[]
[]
[]
[]
[null,null,null,null,null,null,null,null,null,null,null,null,null,null,null,null,null,null,null,null,null,null,null,null,null,null,null,null,null,null,null,null,null,null,null,null,null,null,null,null,null,null,null,null,null,null,null,null,null,{"$f":"TODAY()","v":"2020-05-07"}]
[null,null,null,null,null,null,null,null,null,null,null,null,null,null,null,null,null,null,null,null,null,null,null,null,null,null,null,null,null,null,null,null,null,null,null,null,null,null,null,null,null,null,null,null,null,null,null,null,null,"Delivery Date"]
[null,null,null,null,null,null,null,null,null,null,null,null,null,null,null,null,null,null,null,null,null,null,null,null,null,null,null,null,null,null,null,null,null,null,null,null,null,null,null,null,null,null,null,null,null,null,null,null,null,{"$f":"AX306+10","v":"2020-05-17"}]
[null,null,null,null,null,null,null,null,null,null,null,null,null,null,null,null,null,null,null,null,null,null,null,null,null,null,null,null,null,null,null,null,null,null,null,null,null,null,null,null,null,null,null,null,null,null,null,null,null,{"$f":"AX308+1","v":"2020-05-18"}]
[null,null,null,null,null,null,null,null,null,null,null,null,null,null,null,null,null,null,null,null,null,null,null,null,null,null,null,null,null,null,null,null,null,null,null,null,null,null,null,null,null,null,null,null,null,null,null,null,null,{"$f":"AX309+1","v":"2020-05-19"}]
[null,null,null,null,null,null,null,null,null,null,null,null,null,null,null,null,null,null,null,null,null,null,null,null,null,null,null,null,null,null,null,null,null,null,null,null,null,null,null,null,null,null,null,null,null,null,null,null,null,{"$f":"AX310+1","v":"2020-05-20"}]
[null,null,null,null,null,null,null,null,null,null,null,null,null,null,null,null,null,null,null,null,null,null,null,null,null,null,null,null,null,null,null,null,null,null,null,null,null,null,null,null,null,null,null,null,null,null,null,null,null,"2020-05-21"]
[null,null,null,null,null,null,null,null,null,null,null,null,null,null,null,null,null,null,null,null,null,null,null,null,null,null,null,null,null,null,null,null,null,null,null,null,null,null,null,null,null,null,null,null,null,null,null,null,null,"2020-05-22"]
[null,null,null,null,null,null,null,null,null,null,null,null,null,null,null,null,null,null,null,null,null,null,null,null,null,null,null,null,null,null,null,null,null,null,null,null,null,null,null,null,null,null,null,null,null,null,null,null,null,"2020-05-23"]
[null,null,null,null,null,null,null,null,null,null,null,null,null,null,null,null,null,null,null,null,null,null,null,null,null,null,null,null,null,null,null,null,null,null,null,null,null,null,null,null,null,null,null,null,null,null,null,null,null,"2020-05-24"]
[null,null,null,null,null,null,null,null,null,null,null,null,null,null,null,null,null,null,null,null,null,null,null,null,null,null,null,null,null,null,null,null,null,null,null,null,null,null,null,null,null,null,null,null,null,null,null,null,null,"2020-05-25"]
[null,null,null,null,null,null,null,null,null,null,null,null,null,null,null,null,null,null,null,null,null,null,null,null,null,null,null,null,null,null,null,null,null,null,null,null,null,null,null,null,null,null,null,null,null,null,null,null,null,"2020-05-26"]
[null,null,null,null,null,null,null,null,null,null,null,null,null,null,null,null,null,null,null,null,null,null,null,null,null,null,null,null,null,null,null,null,null,null,null,null,null,null,null,null,null,null,null,null,null,null,null,null,null,"2020-05-27"]
[null,null,null,null,null,null,null,null,null,null,null,null,null,null,null,null,null,null,null,null,null,null,null,null,null,null,null,null,null,null,null,null,null,null,null,null,null,null,null,null,null,null,null,null,null,null,null,null,null,"2020-05-28"]
[null,null,null,null,null,null,null,null,null,null,null,null,null,null,null,null,null,null,null,null,null,null,null,null,null,null,null,null,null,null,null,null,null,null,null,null,null,null,null,null,null,null,null,null,null,null,null,null,null,"2020-05-29"]
[null,null,null,null,null,null,null,null,null,null,null,null,null,null,null,null,null,null,null,null,null,null,null,null,null,null,null,null,null,null,null,null,null,null,null,null,null,null,null,null,null,null,null,null,null,null,null,null,null,"2020-05-30"]
[null,null,null,null,null,null,null,null,null,null,null,null,null,null,null,null,null,null,null,null,null,null,null,null,null,null,null,null,null,null,null,null,null,null,null,null,null,null,null,null,null,null,null,null,null,null,null,null,null,"2020-05-31"]
[null,null,null,null,null,null,null,null,null,null,null,null,null,null,null,null,null,null,null,null,null,null,null,null,null,null,null,null,null,null,null,null,null,null,null,null,null,null,null,null,null,null,null,null,null,null,null,null,null,"2020-06-01"]
[null,null,null,null,null,null,null,null,null,null,null,null,null,null,null,null,null,null,null,null,null,null,null,null,null,null,null,null,null,null,null,null,null,null,null,null,null,null,null,null,null,null,null,null,null,null,null,null,null,"2020-06-02"]
[null,null,null,null,null,null,null,null,null,null,null,null,null,null,null,null,null,null,null,null,null,null,null,null,null,null,null,null,null,null,null,null,null,null,null,null,null,null,null,null,null,null,null,null,null,null,null,null,null,"2020-06-03"]
[null,null,null,null,null,null,null,null,null,null,null,null,null,null,null,null,null,null,null,null,null,null,null,null,null,null,null,null,null,null,null,null,null,null,null,null,null,null,null,null,null,null,null,null,null,null,null,null,null,"2020-06-04"]
[null,null,null,null,null,null,null,null,null,null,null,null,null,null,null,null,null,null,null,null,null,null,null,null,null,null,null,null,null,null,null,null,null,null,null,null,null,null,null,null,null,null,null,null,null,null,null,null,null,"2020-06-05"]
[null,null,null,null,null,null,null,null,null,null,null,null,null,null,null,null,null,null,null,null,null,null,null,null,null,null,null,null,null,null,null,null,null,null,null,null,null,null,null,null,null,null,null,null,null,null,null,null,null,"2020-06-06"]
[null,null,null,null,null,null,null,null,null,null,null,null,null,null,null,null,null,null,null,null,null,null,null,null,null,null,null,null,null,null,null,null,null,null,null,null,null,null,null,null,null,null,null,null,null,null,null,null,null,"2020-06-07"]
[null,null,null,null,null,null,null,null,null,null,null,null,null,null,null,null,null,null,null,null,null,null,null,null,null,null,null,null,null,null,null,null,null,null,null,null,null,null,null,null,null,null,null,null,null,null,null,null,null,"2020-06-08"]
[null,null,null,null,null,null,null,null,null,null,null,null,null,null,null,null,null,null,null,null,null,null,null,null,null,null,null,null,null,null,null,null,null,null,null,null,null,null,null,null,null,null,null,null,null,null,null,null,null,"2020-06-09"]
[null,null,null,null,null,null,null,null,null,null,null,null,null,null,null,null,null,null,null,null,null,null,null,null,null,null,null,null,null,null,null,null,null,null,null,null,null,null,null,null,null,null,null,null,null,null,null,null,null,"2020-06-10"]
[null,null,null,null,null,null,null,null,null,null,null,null,null,null,null,null,null,null,null,null,null,null,null,null,null,null,null,null,null,null,null,null,null,null,null,null,null,null,null,null,null,null,null,null,null,null,null,null,null,"2020-06-11"]
[null,null,null,null,null,null,null,null,null,null,null,null,null,null,null,null,null,null,null,null,null,null,null,null,null,null,null,null,null,null,null,null,null,null,null,null,null,null,null,null,null,null,null,null,null,null,null,null,null,"2020-06-12"]
[null,null,null,null,null,null,null,null,null,null,null,null,null,null,null,null,null,null,null,null,null,null,null,null,null,null,null,null,null,null,null,null,null,null,null,null,null,null,null,null,null,null,null,null,null,null,null,null,null,"2020-06-13"]
[null,null,null,null,null,null,null,null,null,null,null,null,null,null,null,null,null,null,null,null,null,null,null,null,null,null,null,null,null,null,null,null,null,null,null,null,null,null,null,null,null,null,null,null,null,null,null,null,null,"2020-06-14"]
[null,null,null,null,null,null,null,null,null,null,null,null,null,null,null,null,null,null,null,null,null,null,null,null,null,null,null,null,null,null,null,null,null,null,null,null,null,null,null,null,null,null,null,null,null,null,null,null,null,"2020-06-15"]
[null,null,null,null,null,null,null,null,null,null,null,null,null,null,null,null,null,null,null,null,null,null,null,null,null,null,null,null,null,null,null,null,null,null,null,null,null,null,null,null,null,null,null,null,null,null,null,null,null,"2020-06-16"]
[null,null,null,null,null,null,null,null,null,null,null,null,null,null,null,null,null,null,null,null,null,null,null,null,null,null,null,null,null,null,null,null,null,null,null,null,null,null,null,null,null,null,null,null,null,null,null,null,null,"2020-06-17"]
[null,null,null,null,null,null,null,null,null,null,null,null,null,null,null,null,null,null,null,null,null,null,null,null,null,null,null,null,null,null,null,null,null,null,null,null,null,null,null,null,null,null,null,null,null,null,null,null,null,"2020-06-18"]
[null,null,null,null,null,null,null,null,null,null,null,null,null,null,null,null,null,null,null,null,null,null,null,null,null,null,null,null,null,null,null,null,null,null,null,null,null,null,null,null,null,null,null,null,null,null,null,null,null,"2020-06-19"]
[null,null,null,null,null,null,null,null,null,null,null,null,null,null,null,null,null,null,null,null,null,null,null,null,null,null,null,null,null,null,null,null,null,null,null,null,null,null,null,null,null,null,null,null,null,null,null,null,null,"2020-06-20"]
[null,null,null,null,null,null,null,null,null,null,null,null,null,null,null,null,null,null,null,null,null,null,null,null,null,null,null,null,null,null,null,null,null,null,null,null,null,null,null,null,null,null,null,null,null,null,null,null,null,"2020-06-21"]
[null,null,null,null,null,null,null,null,null,null,null,null,null,null,null,null,null,null,null,null,null,null,null,null,null,null,null,null,null,null,null,null,null,null,null,null,null,null,null,null,null,null,null,null,null,null,null,null,null,"2020-06-22"]
[null,null,null,null,null,null,null,null,null,null,null,null,null,null,null,null,null,null,null,null,null,null,null,null,null,null,null,null,null,null,null,null,null,null,null,null,null,null,null,null,null,null,null,null,null,null,null,null,null,"2020-06-23"]
[null,null,null,null,null,null,null,null,null,null,null,null,null,null,null,null,null,null,null,null,null,null,null,null,null,null,null,null,null,null,null,null,null,null,null,null,null,null,null,null,null,null,null,null,null,null,null,null,null,"2020-06-24"]
[null,null,null,null,null,null,null,null,null,null,null,null,null,null,null,null,null,null,null,null,null,null,null,null,null,null,null,null,null,null,null,null,null,null,null,null,null,null,null,null,null,null,null,null,null,null,null,null,null,"2020-06-25"]
[null,null,null,null,null,null,null,null,null,null,null,null,null,null,null,null,null,null,null,null,null,null,null,null,null,null,null,null,null,null,null,null,null,null,null,null,null,null,null,null,null,null,null,null,null,null,null,null,null,"2020-06-26"]
[null,null,null,null,null,null,null,null,null,null,null,null,null,null,null,null,null,null,null,null,null,null,null,null,null,null,null,null,null,null,null,null,null,null,null,null,null,null,null,null,null,null,null,null,null,null,null,null,null,"2020-06-27"]
[null,null,null,null,null,null,null,null,null,null,null,null,null,null,null,null,null,null,null,null,null,null,null,null,null,null,null,null,null,null,null,null,null,null,null,null,null,null,null,null,null,null,null,null,null,null,null,null,null,"2020-06-28"]
[null,null,null,null,null,null,null,null,null,null,null,null,null,null,null,null,null,null,null,null,null,null,null,null,null,null,null,null,null,null,null,null,null,null,null,null,null,null,null,null,null,null,null,null,null,null,null,null,null,"2020-06-29"]
[null,null,null,null,null,null,null,null,null,null,null,null,null,null,null,null,null,null,null,null,null,null,null,null,null,null,null,null,null,null,null,null,null,null,null,null,null,null,null,null,null,null,null,null,null,null,null,null,null,"2020-06-30"]
[null,null,null,null,null,null,null,null,null,null,null,null,null,null,null,null,null,null,null,null,null,null,null,null,null,null,null,null,null,null,null,null,null,null,null,null,null,null,null,null,null,null,null,null,null,null,null,null,null,"2020-07-01"]
[null,null,null,null,null,null,null,null,null,null,null,null,null,null,null,null,null,null,null,null,null,null,null,null,null,null,null,null,null,null,null,null,null,null,null,null,null,null,null,null,null,null,null,null,null,null,null,null,null,"2020-07-02"]
[null,null,null,null,null,null,null,null,null,null,null,null,null,null,null,null,null,null,null,null,null,null,null,null,null,null,null,null,null,null,null,null,null,null,null,null,null,null,null,null,null,null,null,null,null,null,null,null,null,"2020-07-03"]
[null,null,null,null,null,null,null,null,null,null,null,null,null,null,null,null,null,null,null,null,null,null,null,null,null,null,null,null,null,null,null,null,null,null,null,null,null,null,null,null,null,null,null,null,null,null,null,null,null,"2020-07-04"]
[null,null,null,null,null,null,null,null,null,null,null,null,null,null,null,null,null,null,null,null,null,null,null,null,null,null,null,null,null,null,null,null,null,null,null,null,null,null,null,null,null,null,null,null,null,null,null,null,null,"2020-07-05"]
[null,null,null,null,null,null,null,null,null,null,null,null,null,null,null,null,null,null,null,null,null,null,null,null,null,null,null,null,null,null,null,null,null,null,null,null,null,null,null,null,null,null,null,null,null,null,null,null,null,"2020-07-06"]
[null,null,null,null,null,null,null,null,null,null,null,null,null,null,null,null,null,null,null,null,null,null,null,null,null,null,null,null,null,null,null,null,null,null,null,null,null,null,null,null,null,null,null,null,null,null,null,null,null,"2020-07-07"]
[null,null,null,null,null,null,null,null,null,null,null,null,null,null,null,null,null,null,null,null,null,null,null,null,null,null,null,null,null,null,null,null,null,null,null,null,null,null,null,null,null,null,null,null,null,null,null,null,null,"2020-07-08"]
[null,null,null,null,null,null,null,null,null,null,null,null,null,null,null,null,null,null,null,null,null,null,null,null,null,null,null,null,null,null,null,null,null,null,null,null,null,null,null,null,null,null,null,null,null,null,null,null,null,"2020-07-09"]
[null,null,null,null,null,null,null,null,null,null,null,null,null,null,null,null,null,null,null,null,null,null,null,null,null,null,null,null,null,null,null,null,null,null,null,null,null,null,null,null,null,null,null,null,null,null,null,null,null,"2020-07-10"]
[null,null,null,null,null,null,null,null,null,null,null,null,null,null,null,null,null,null,null,null,null,null,null,null,null,null,null,null,null,null,null,null,null,null,null,null,null,null,null,null,null,null,null,null,null,null,null,null,null,"2020-07-11"]
[null,null,null,null,null,null,null,null,null,null,null,null,null,null,null,null,null,null,null,null,null,null,null,null,null,null,null,null,null,null,null,null,null,null,null,null,null,null,null,null,null,null,null,null,null,null,null,null,null,"2020-07-12"]
[null,null,null,null,null,null,null,null,null,null,null,null,null,null,null,null,null,null,null,null,null,null,null,null,null,null,null,null,null,null,null,null,null,null,null,null,null,null,null,null,null,null,null,null,null,null,null,null,null,"2020-07-13"]
[null,null,null,null,null,null,null,null,null,null,null,null,null,null,null,null,null,null,null,null,null,null,null,null,null,null,null,null,null,null,null,null,null,null,null,null,null,null,null,null,null,null,null,null,null,null,null,null,null,"2020-07-14"]
[null,null,null,null,null,null,null,null,null,null,null,null,null,null,null,null,null,null,null,null,null,null,null,null,null,null,null,null,null,null,null,null,null,null,null,null,null,null,null,null,null,null,null,null,null,null,null,null,null,"2020-07-15"]
[null,null,null,null,null,null,null,null,null,null,null,null,null,null,null,null,null,null,null,null,null,null,null,null,null,null,null,null,null,null,null,null,null,null,null,null,null,null,null,null,null,null,null,null,null,null,null,null,null,"2020-07-16"]
[null,null,null,null,null,null,null,null,null,null,null,null,null,null,null,null,null,null,null,null,null,null,null,null,null,null,null,null,null,null,null,null,null,null,null,null,null,null,null,null,null,null,null,null,null,null,null,null,null,"2020-07-17"]
[null,null,null,null,null,null,null,null,null,null,null,null,null,null,null,null,null,null,null,null,null,null,null,null,null,null,null,null,null,null,null,null,null,null,null,null,null,null,null,null,null,null,null,null,null,null,null,null,null,"2020-07-18"]
[null,null,null,null,null,null,null,null,null,null,null,null,null,null,null,null,null,null,null,null,null,null,null,null,null,null,null,null,null,null,null,null,null,null,null,null,null,null,null,null,null,null,null,null,null,null,null,null,null,"2020-07-19"]
[null,null,null,null,null,null,null,null,null,null,null,null,null,null,null,null,null,null,null,null,null,null,null,null,null,null,null,null,null,null,null,null,null,null,null,null,null,null,null,null,null,null,null,null,null,null,null,null,null,"2020-07-20"]
[null,null,null,null,null,null,null,null,null,null,null,null,null,null,null,null,null,null,null,null,null,null,null,null,null,null,null,null,null,null,null,null,null,null,null,null,null,null,null,null,null,null,null,null,null,null,null,null,null,"2020-07-21"]
[null,null,null,null,null,null,null,null,null,null,null,null,null,null,null,null,null,null,null,null,null,null,null,null,null,null,null,null,null,null,null,null,null,null,null,null,null,null,null,null,null,null,null,null,null,null,null,null,null,"2020-07-22"]
[null,null,null,null,null,null,null,null,null,null,null,null,null,null,null,null,null,null,null,null,null,null,null,null,null,null,null,null,null,null,null,null,null,null,null,null,null,null,null,null,null,null,null,null,null,null,null,null,null,{"$f":"AX374+1","v":"2020-07-23"}]
[null,null,null,null,null,null,null,null,null,null,null,null,null,null,null,null,null,null,null,null,null,null,null,null,null,null,null,null,null,null,null,null,null,null,null,null,null,null,null,null,null,null,null,null,null,null,null,null,null,"2020-07-24"]
[null,null,null,null,null,null,null,null,null,null,null,null,null,null,null,null,null,null,null,null,null,null,null,null,null,null,null,null,null,null,null,null,null,null,null,null,null,null,null,null,null,null,null,null,null,null,null,null,null,"2020-07-25"]
[null,null,null,null,null,null,null,null,null,null,null,null,null,null,null,null,null,null,null,null,null,null,null,null,null,null,null,null,null,null,null,null,null,null,null,null,null,null,null,null,null,null,null,null,null,null,null,null,null,"2020-07-26"]
[null,null,null,null,null,null,null,null,null,null,null,null,null,null,null,null,null,null,null,null,null,null,null,null,null,null,null,null,null,null,null,null,null,null,null,null,null,null,null,null,null,null,null,null,null,null,null,null,null,"2020-07-27"]
[null,null,null,null,null,null,null,null,null,null,null,null,null,null,null,null,null,null,null,null,null,null,null,null,null,null,null,null,null,null,null,null,null,null,null,null,null,null,null,null,null,null,null,null,null,null,null,null,null,"2020-07-28"]
[null,null,null,null,null,null,null,null,null,null,null,null,null,null,null,null,null,null,null,null,null,null,null,null,null,null,null,null,null,null,null,null,null,null,null,null,null,null,null,null,null,null,null,null,null,null,null,null,null,"2020-07-29"]
[null,null,null,null,null,null,null,null,null,null,null,null,null,null,null,null,null,null,null,null,null,null,null,null,null,null,null,null,null,null,null,null,null,null,null,null,null,null,null,null,null,null,null,null,null,null,null,null,null,"2020-07-30"]
[null,null,null,null,null,null,null,null,null,null,null,null,null,null,null,null,null,null,null,null,null,null,null,null,null,null,null,null,null,null,null,null,null,null,null,null,null,null,null,null,null,null,null,null,null,null,null,null,null,"2020-07-31"]
[null,null,null,null,null,null,null,null,null,null,null,null,null,null,null,null,null,null,null,null,null,null,null,null,null,null,null,null,null,null,null,null,null,null,null,null,null,null,null,null,null,null,null,null,null,null,null,null,null,"2020-08-01"]
[null,null,null,null,null,null,null,null,null,null,null,null,null,null,null,null,null,null,null,null,null,null,null,null,null,null,null,null,null,null,null,null,null,null,null,null,null,null,null,null,null,null,null,null,null,null,null,null,null,"2020-08-02"]
[null,null,null,null,null,null,null,null,null,null,null,null,null,null,null,null,null,null,null,null,null,null,null,null,null,null,null,null,null,null,null,null,null,null,null,null,null,null,null,null,null,null,null,null,null,null,null,null,null,"2020-08-03"]
[null,null,null,null,null,null,null,null,null,null,null,null,null,null,null,null,null,null,null,null,null,null,null,null,null,null,null,null,null,null,null,null,null,null,null,null,null,null,null,null,null,null,null,null,null,null,null,null,null,"2020-08-04"]
[null,null,null,null,null,null,null,null,null,null,null,null,null,null,null,null,null,null,null,null,null,null,null,null,null,null,null,null,null,null,null,null,null,null,null,null,null,null,null,null,null,null,null,null,null,null,null,null,null,"2020-08-05"]
[null,null,null,null,null,null,null,null,null,null,null,null,null,null,null,null,null,null,null,null,null,null,null,null,null,null,null,null,null,null,null,null,null,null,null,null,null,null,null,null,null,null,null,null,null,null,null,null,null,"2020-08-06"]
[null,null,null,null,null,null,null,null,null,null,null,null,null,null,null,null,null,null,null,null,null,null,null,null,null,null,null,null,null,null,null,null,null,null,null,null,null,null,null,null,null,null,null,null,null,null,null,null,null,"2020-08-07"]
[null,null,null,null,null,null,null,null,null,null,null,null,null,null,null,null,null,null,null,null,null,null,null,null,null,null,null,null,null,null,null,null,null,null,null,null,null,null,null,null,null,null,null,null,null,null,null,null,null,"2020-08-08"]
[null,null,null,null,null,null,null,null,null,null,null,null,null,null,null,null,null,null,null,null,null,null,null,null,null,null,null,null,null,null,null,null,null,null,null,null,null,null,null,null,null,null,null,null,null,null,null,null,null,"2020-08-09"]
[null,null,null,null,null,null,null,null,null,null,null,null,null,null,null,null,null,null,null,null,null,null,null,null,null,null,null,null,null,null,null,null,null,null,null,null,null,null,null,null,null,null,null,null,null,null,null,null,null,"2020-08-10"]
[null,null,null,null,null,null,null,null,null,null,null,null,null,null,null,null,null,null,null,null,null,null,null,null,null,null,null,null,null,null,null,null,null,null,null,null,null,null,null,null,null,null,null,null,null,null,null,null,null,"2020-08-11"]
[null,null,null,null,null,null,null,null,null,null,null,null,null,null,null,null,null,null,null,null,null,null,null,null,null,null,null,null,null,null,null,null,null,null,null,null,null,null,null,null,null,null,null,null,null,null,null,null,null,"2020-08-12"]
[null,null,null,null,null,null,null,null,null,null,null,null,null,null,null,null,null,null,null,null,null,null,null,null,null,null,null,null,null,null,null,null,null,null,null,null,null,null,null,null,null,null,null,null,null,null,null,null,null,"2020-08-13"]
[null,null,null,null,null,null,null,null,null,null,null,null,null,null,null,null,null,null,null,null,null,null,null,null,null,null,null,null,null,null,null,null,null,null,null,null,null,null,null,null,null,null,null,null,null,null,null,null,null,"2020-08-14"]
[null,null,null,null,null,null,null,null,null,null,null,null,null,null,null,null,null,null,null,null,null,null,null,null,null,null,null,null,null,null,null,null,null,null,null,null,null,null,null,null,null,null,null,null,null,null,null,null,null,"2020-08-15"]
[null,null,null,null,null,null,null,null,null,null,null,null,null,null,null,null,null,null,null,null,null,null,null,null,null,null,null,null,null,null,null,null,null,null,null,null,null,null,null,null,null,null,null,null,null,null,null,null,null,"2020-08-16"]
[null,null,null,null,null,null,null,null,null,null,null,null,null,null,null,null,null,null,null,null,null,null,null,null,null,null,null,null,null,null,null,null,null,null,null,null,null,null,null,null,null,null,null,null,null,null,null,null,null,"2020-08-17"]
[null,null,null,null,null,null,null,null,null,null,null,null,null,null,null,null,null,null,null,null,null,null,null,null,null,null,null,null,null,null,null,null,null,null,null,null,null,null,null,null,null,null,null,null,null,null,null,null,null,"2020-08-18"]
[null,null,null,null,null,null,null,null,null,null,null,null,null,null,null,null,null,null,null,null,null,null,null,null,null,null,null,null,null,null,null,null,null,null,null,null,null,null,null,null,null,null,null,null,null,null,null,null,null,"2020-08-19"]
[null,null,null,null,null,null,null,null,null,null,null,null,null,null,null,null,null,null,null,null,null,null,null,null,null,null,null,null,null,null,null,null,null,null,null,null,null,null,null,null,null,null,null,null,null,null,null,null,null,"2020-08-20"]
[null,null,null,null,null,null,null,null,null,null,null,null,null,null,null,null,null,null,null,null,null,null,null,null,null,null,null,null,null,null,null,null,null,null,null,null,null,null,null,null,null,null,null,null,null,null,null,null,null,"2020-08-21"]
[null,null,null,null,null,null,null,null,null,null,null,null,null,null,null,null,null,null,null,null,null,null,null,null,null,null,null,null,null,null,null,null,null,null,null,null,null,null,null,null,null,null,null,null,null,null,null,null,null,"2020-08-22"]
[null,null,null,null,null,null,null,null,null,null,null,null,null,null,null,null,null,null,null,null,null,null,null,null,null,null,null,null,null,null,null,null,null,null,null,null,null,null,null,null,null,null,null,null,null,null,null,null,null,"2020-08-23"]
[null,null,null,null,null,null,null,null,null,null,null,null,null,null,null,null,null,null,null,null,null,null,null,null,null,null,null,null,null,null,null,null,null,null,null,null,null,null,null,null,null,null,null,null,null,null,null,null,null,"2020-08-24"]
[null,null,null,null,null,null,null,null,null,null,null,null,null,null,null,null,null,null,null,null,null,null,null,null,null,null,null,null,null,null,null,null,null,null,null,null,null,null,null,null,null,null,null,null,null,null,null,null,null,"2020-08-25"]
[null,null,null,null,null,null,null,null,null,null,null,null,null,null,null,null,null,null,null,null,null,null,null,null,null,null,null,null,null,null,null,null,null,null,null,null,null,null,null,null,null,null,null,null,null,null,null,null,null,"2020-08-26"]
[null,null,null,null,null,null,null,null,null,null,null,null,null,null,null,null,null,null,null,null,null,null,null,null,null,null,null,null,null,null,null,null,null,null,null,null,null,null,null,null,null,null,null,null,null,null,null,null,null,"2020-08-27"]
[null,null,null,null,null,null,null,null,null,null,null,null,null,null,null,null,null,null,null,null,null,null,null,null,null,null,null,null,null,null,null,null,null,null,null,null,null,null,null,null,null,null,null,null,null,null,null,null,null,"2020-08-28"]
[null,null,null,null,null,null,null,null,null,null,null,null,null,null,null,null,null,null,null,null,null,null,null,null,null,null,null,null,null,null,null,null,null,null,null,null,null,null,null,null,null,null,null,null,null,null,null,null,null,"2020-08-29"]
[null,null,null,null,null,null,null,null,null,null,null,null,null,null,null,null,null,null,null,null,null,null,null,null,null,null,null,null,null,null,null,null,null,null,null,null,null,null,null,null,null,null,null,null,null,null,null,null,null,"2020-08-30"]
[null,null,null,null,null,null,null,null,null,null,null,null,null,null,null,null,null,null,null,null,null,null,null,null,null,null,null,null,null,null,null,null,null,null,null,null,null,null,null,null,null,null,null,null,null,null,null,null,null,"2020-08-31"]
[null,null,null,null,null,null,null,null,null,null,null,null,null,null,null,null,null,null,null,null,null,null,null,null,null,null,null,null,null,null,null,null,null,null,null,null,null,null,null,null,null,null,null,null,null,null,null,null,null,"2020-09-01"]
[null,null,null,null,null,null,null,null,null,null,null,null,null,null,null,null,null,null,null,null,null,null,null,null,null,null,null,null,null,null,null,null,null,null,null,null,null,null,null,null,null,null,null,null,null,null,null,null,null,"2020-09-02"]
[null,null,null,null,null,null,null,null,null,null,null,null,null,null,null,null,null,null,null,null,null,null,null,null,null,null,null,null,null,null,null,null,null,null,null,null,null,null,null,null,null,null,null,null,null,null,null,null,null,"2020-09-03"]
[null,null,null,null,null,null,null,null,null,null,null,null,null,null,null,null,null,null,null,null,null,null,null,null,null,null,null,null,null,null,null,null,null,null,null,null,null,null,null,null,null,null,null,null,null,null,null,null,null,"2020-09-04"]
[null,null,null,null,null,null,null,null,null,null,null,null,null,null,null,null,null,null,null,null,null,null,null,null,null,null,null,null,null,null,null,null,null,null,null,null,null,null,null,null,null,null,null,null,null,null,null,null,null,"2020-09-05"]

{"sheet":"Form A","index":1,"n_rows":56,"n_cols":8,"rows_kept":56,"cut":false,"hidden":false,"merged":[]}
[]
[null,{"$f":"IF(Form!H6=\"\",Form!C6,Form!H6)","v":"Firma Adı"}]
[null,{"$f":"IF(Form!H7=\"\",Form!C7,Form!H7)","v":"Referans/Proje Adı"}]
[null,{"$f":"Form!F18&\" \"&Form!H18","v":" Durak"}]
[null,null,{"$f":"Languages!A83","v":"Lütfen hangi katta hangi kapının açılacağını aşağıda belirtiniz."}]
[]
[null,null,{"$f":"Languages!A87","v":"Kattan Kata Mesafeler (mm)"},{"$f":"Languages!A86","v":"Katlar"},{"$f":"Languages!A84","v":"A Kapısı"},{"$f":"Languages!A85","v":"B Kapısı"},{"$f":"Languages!A86","v":"Katlar"},"Floor Names"]
[null,{"$f":"Languages!A88","v":"En üst kat butonu ve pano arası mesafe =>"},null,48,null,null,48]
[null,null,null,47,null,null,47]
[null,null,null,46,null,null,46]
[null,null,null,45,null,null,45]
[null,null,null,44,null,null,44]
[null,null,null,43,null,null,43]
[null,null,null,42,null,null,42]
[null,null,null,41,null,null,41]
[null,null,null,40,null,null,40]
[null,null,null,39,null,null,39]
[null,null,null,38,null,null,38]
[null,null,null,37,null,null,37]
[null,null,null,36,null,null,36]
[null,null,null,35,null,null,35]
[null,null,null,34,null,null,34]
[null,null,null,33,null,null,33]
[null,null,null,32,null,null,32]
[null,null,null,31,null,null,31]
[null,null,null,30,null,null,30]
[null,null,null,29,null,null,29]
[null,null,null,28,null,null,28]
[null,null,null,27,null,null,27]
[null,null,null,26,null,null,26]
[null,null,null,25,null,null,25]
[null,null,null,24,null,null,24]
[null,null,null,23,null,null,23]
[null,null,null,22,null,null,22]
[null,null,null,21,null,null,21]
[null,null,null,20,null,null,20]
[null,null,null,19,null,null,19]
[null,null,null,18,null,null,18]
[null,null,null,17,null,null,17]
[null,null,null,16,null,null,16]
[null,null,null,15,null,null,15]
[null,null,null,14,null,null,14]
[null,null,null,13,null,null,13]
[null,null,null,12,null,null,12]
[null,null,null,11,null,null,11]
[null,null,null,10,null,null,10]
[null,null,null,9,null,null,9]
[null,null,null,8,null,null,8]
[null,null,null,7,null,null,7]
[null,null,null,6,null,null,6]
[null,null,null,5,null,null,5]
[null,null,null,4,null,null,4]
[null,null,null,3,null,null,3]
[null,null,null,2,null,null,2]
[null,null,null,1,null,null,1]
[null,{"$f":"Languages!A89","v":"Kuyu dibi =>"}]

{"sheet":"Ver","index":2,"n_rows":7,"n_cols":3,"rows_kept":7,"cut":false,"hidden":true,"merged":[]}
[]
[null,"Versiyon Notları"]
[]
[null,"Mik-el CP-COP-LOP Form v0403.xlsm"]
[null,"1.","Hazır Tesisat alanı eklendi."]
[null,"2. ","E33'de tümleşik ürün kontrolü yapılmaya başlandı."]
[null,"3.","AA42'de Form A sayfasını doldurunuz uyarısı yapılmaya başlandı."]

{"sheet":"Languages","index":3,"n_rows":98,"n_cols":4,"rows_kept":98,"cut":false,"hidden":true,"merged":[]}
["Aşağıdaki tabloda satır ekleme yapılmamalıdır.","TR","EN","RU"]
[{"$f":"IF(Form!$AA$4=\"TR\",Languages!B2,IF(Form!$AA$4=\"EN\",Languages!C2,IF(Form!$AA$4=\"RU\",Languages!D2,\"HATA!\")))","v":"Formu Temizle"},"Formu Temizle","Clean the Form","Очистка формы"]
[{"$f":"IF(Form!$AA$4=\"TR\",Languages!B3,IF(Form!$AA$4=\"EN\",Languages!C3,IF(Form!$AA$4=\"RU\",Languages!D3,\"HATA!\")))","v":"Formu Temizlemek istediğinize emin misiniz? Girdiğiniz bütün veriler silinecektir!"},"Formu Temizlemek istediğinize emin misiniz? Girdiğiniz bütün veriler silinecektir!","Do you want to clear the form? Your inputted data will be deleted!","Вы хотите очистить форму? Все данные будут удалены!"]
[]
[]
[]
[]
[]
[]
[]
[]
[]
[]
[]
[]
[]
[]
[{"$f":"IF(Form!$AA$4=\"TR\",Languages!B18,IF(Form!$AA$4=\"EN\",Languages!C18,IF(Form!$AA$4=\"RU\",Languages!D18,\"HATA!\")))","v":"MİK-EL ELEKTRONİK KUMANDA PANOSU & BUTONYER TEKLİF / SİPARİŞ FORMU"},"MİK-EL ELEKTRONİK KUMANDA PANOSU & BUTONYER TEKLİF / SİPARİŞ FORMU","MIK-EL ELEKTRONIK CONTROL PANEL & COP & LOP OFFER / ORDER FORM","MIK-EL ELEKTRONIK ФОРМА ЗАКАЗА СТАНЦИИ УПРАВЛЕНИЯ И КНОПОК ВЫЗОВА, ПРИКАЗА"]
[{"$f":"IF(Form!$AA$4=\"TR\",Languages!B19,IF(Form!$AA$4=\"EN\",Languages!C19,IF(Form!$AA$4=\"RU\",Languages!D19,\"HATA!\")))","v":"Firma Adı"},"Firma Adı","Company Name","Наименование Компании"]
[{"$f":"IF(Form!$AA$4=\"TR\",Languages!B20,IF(Form!$AA$4=\"EN\",Languages!C20,IF(Form!$AA$4=\"RU\",Languages!D20,\"HATA!\")))","v":"Referans/Proje Adı"},"Referans/Proje Adı","Referance/Project Name","Наименование Проекта"]
[{"$f":"IF(Form!$AA$4=\"TR\",Languages!B21,IF(Form!$AA$4=\"EN\",Languages!C21,IF(Form!$AA$4=\"RU\",Languages!D21,\"HATA!\")))","v":"E-posta Adresi"},"E-posta Adresi","E-mail Address","E-mail Адрес"]
[{"$f":"IF(Form!$AA$4=\"TR\",Languages!B22,IF(Form!$AA$4=\"EN\",Languages!C22,IF(Form!$AA$4=\"RU\",Languages!D22,\"HATA!\")))","v":"Adet"},"Adet","Quantity","Количество"]
[{"$f":"IF(Form!$AA$4=\"TR\",Languages!B23,IF(Form!$AA$4=\"EN\",Languages!C23,IF(Form!$AA$4=\"RU\",Languages!D23,\"HATA!\")))","v":"adet"},"adet","pcs","шт"]
[{"$f":"IF(Form!$AA$4=\"TR\",Languages!B24,IF(Form!$AA$4=\"EN\",Languages!C24,IF(Form!$AA$4=\"RU\",Languages!D24,\"HATA!\")))","v":"Tarih"},"Tarih","Date","Дата"]
[{"$f":"IF(Form!$AA$4=\"TR\",Languages!B25,IF(Form!$AA$4=\"EN\",Languages!C25,IF(Form!$AA$4=\"RU\",Languages!D25,\"HATA!\")))","v":"Talep Edilen Teslim Tarihi"},"Talep Edilen Teslim Tarihi","Requested Delivery Time","Время постави"]
[{"$f":"IF(Form!$AA$4=\"TR\",Languages!B26,IF(Form!$AA$4=\"EN\",Languages!C26,IF(Form!$AA$4=\"RU\",Languages!D26,\"HATA!\")))","v":"Kumanda Sistemi Modeli"},"Kumanda Sistemi Modeli","Controller Model","Модель станции управления"]
[{"$f":"IF(Form!$AA$4=\"TR\",Languages!B27,IF(Form!$AA$4=\"EN\",Languages!C27,IF(Form!$AA$4=\"RU\",Languages!D27,\"HATA!\")))","v":"Lütfen kumanda sistemini seçiniz"},"Lütfen kumanda sistemini seçiniz","Please select a controller","Пожалуйста выбирете станцию управления"]
[{"$f":"IF(Form!$AA$4=\"TR\",Languages!B28,IF(Form!$AA$4=\"EN\",Languages!C28,IF(Form!$AA$4=\"RU\",Languages!D28,\"HATA!\")))","v":"Kumanda Türü"},"Kumanda Türü","Controller Type","Тип станции управления"]
[{"$f":"IF(Form!$AA$4=\"TR\",Languages!B29,IF(Form!$AA$4=\"EN\",Languages!C29,IF(Form!$AA$4=\"RU\",Languages!D29,\"HATA!\")))","v":"Tek / Grup Çalışma"},"Tek / Grup Çalışma","Single / Group","Одиночный / В группе"]
[{"$f":"IF(Form!$AA$4=\"TR\",Languages!B30,IF(Form!$AA$4=\"EN\",Languages!C30,IF(Form!$AA$4=\"RU\",Languages!D30,\"HATA!\")))","v":"Tahrik Türü"},"Tahrik Türü","Traction Types","Тип привода"]
[{"$f":"IF(Form!$AA$4=\"TR\",Languages!B31,IF(Form!$AA$4=\"EN\",Languages!C31,IF(Form!$AA$4=\"RU\",Languages!D31,\"HATA!\")))","v":"Asansör Standardı"},"Asansör Standardı","Lift Standards","Стандарты"]
[{"$f":"IF(Form!$AA$4=\"TR\",Languages!B32,IF(Form!$AA$4=\"EN\",Languages!C32,IF(Form!$AA$4=\"RU\",Languages!D32,\"HATA!\")))","v":"Genel Özellikler"},"Genel Özellikler","General Specifications","Основные спецификации"]
[{"$f":"IF(Form!$AA$4=\"TR\",Languages!B33,IF(Form!$AA$4=\"EN\",Languages!C33,IF(Form!$AA$4=\"RU\",Languages!D33,\"HATA!\")))","v":"Durak Sayısı"},"Durak Sayısı","No of Stops","Кол-во остановок"]
[{"$f":"IF(Form!$AA$4=\"TR\",Languages!B34,IF(Form!$AA$4=\"EN\",Languages!C34,IF(Form!$AA$4=\"RU\",Languages!D34,\"HATA!\")))","v":"Motor / Hidrolik"},"Motor / Hidrolik","Motor / Hydraulic","Мотор / Гидравлика"]
[{"$f":"IF(Form!$AA$4=\"TR\",Languages!B35,IF(Form!$AA$4=\"EN\",Languages!C35,IF(Form!$AA$4=\"RU\",Languages!D35,\"HATA!\")))","v":"Konum Bilgisi"},"Konum Bilgisi","Position Information","Информаци о месте установке"]
[{"$f":"IF(Form!$AA$4=\"TR\",Languages!B36,IF(Form!$AA$4=\"EN\",Languages!C36,IF(Form!$AA$4=\"RU\",Languages!D36,\"HATA!\")))","v":"Durak"},"Durak","Stops","Остановок"]
[{"$f":"IF(Form!$AA$4=\"TR\",Languages!B37,IF(Form!$AA$4=\"EN\",Languages!C37,IF(Form!$AA$4=\"RU\",Languages!D37,\"HATA!\")))","v":"Güç / Akım"},"Güç / Akım","Power / Current","Мощность мотора"]
[{"$f":"IF(Form!$AA$4=\"TR\",Languages!B38,IF(Form!$AA$4=\"EN\",Languages!C38,IF(Form!$AA$4=\"RU\",Languages!D38,\"HATA!\")))","v":"Kabin Kapasitesi"},"Kabin Kapasitesi","Car Capacity","Грузоподъемность"]
[{"$f":"IF(Form!$AA$4=\"TR\",Languages!B39,IF(Form!$AA$4=\"EN\",Languages!C39,IF(Form!$AA$4=\"RU\",Languages!D39,\"HATA!\")))","v":"Kabin Hızı"},"Kabin Hızı","Car Speed","Скорость"]
[{"$f":"IF(Form!$AA$4=\"TR\",Languages!B40,IF(Form!$AA$4=\"EN\",Languages!C40,IF(Form!$AA$4=\"RU\",Languages!D40,\"HATA!\")))","v":"Motor Fren Gerilimi"},"Motor Fren Gerilimi","Motor Brake Voltage","Тормозная катушка V"]
[{"$f":"IF(Form!$AA$4=\"TR\",Languages!B41,IF(Form!$AA$4=\"EN\",Languages!C41,IF(Form!$AA$4=\"RU\",Languages!D41,\"HATA!\")))","v":"Kapılar"},"Kapılar","Doors","Двери"]
[{"$f":"IF(Form!$AA$4=\"TR\",Languages!B42,IF(Form!$AA$4=\"EN\",Languages!C42,IF(Form!$AA$4=\"RU\",Languages!D42,\"HATA!\")))","v":"Otomatik Kapı"},"Otomatik Kapı","Automatic Door","Автоматическая дверь"]
[{"$f":"IF(Form!$AA$4=\"TR\",Languages!B43,IF(Form!$AA$4=\"EN\",Languages!C43,IF(Form!$AA$4=\"RU\",Languages!D43,\"HATA!\")))","v":"Kat Kapısı"},"Kat Kapısı","Landing Door","Распашная дверь"]
[{"$f":"IF(Form!$AA$4=\"TR\",Languages!B44,IF(Form!$AA$4=\"EN\",Languages!C44,IF(Form!$AA$4=\"RU\",Languages!D44,\"HATA!\")))","v":"Kapı Mot Volt"},"Kapı Mot Volt","Door Mot Volt","Дверной мотор V"]
[{"$f":"IF(Form!$AA$4=\"TR\",Languages!B45,IF(Form!$AA$4=\"EN\",Languages!C45,IF(Form!$AA$4=\"RU\",Languages!D45,\"HATA!\")))","v":"2. Kapı (eğer varsa)"},"2. Kapı (eğer varsa)","2nd Door (if any)","2-я дверь (если есть)"]
[{"$f":"IF(Form!$AA$4=\"TR\",Languages!B46,IF(Form!$AA$4=\"EN\",Languages!C46,IF(Form!$AA$4=\"RU\",Languages!D46,\"HATA!\")))","v":"Otomatik Kapı"},"Otomatik Kapı","Automatic Door","Автоматическая дверь"]
[{"$f":"IF(Form!$AA$4=\"TR\",Languages!B47,IF(Form!$AA$4=\"EN\",Languages!C47,IF(Form!$AA$4=\"RU\",Languages!D47,\"HATA!\")))","v":"Kat Kapısı"},"Kat Kapısı","Landing Door","Распашная дверь"]
[{"$f":"IF(Form!$AA$4=\"TR\",Languages!B48,IF(Form!$AA$4=\"EN\",Languages!C48,IF(Form!$AA$4=\"RU\",Languages!D48,\"HATA!\")))","v":"Kapı Mot Volt"},"Kapı Mot Volt","Door Mot Volt","Дверной мотор V"]
[{"$f":"IF(Form!$AA$4=\"TR\",Languages!B49,IF(Form!$AA$4=\"EN\",Languages!C49,IF(Form!$AA$4=\"RU\",Languages!D49,\"HATA!\")))","v":"Lütfen 2. kapı için 'Form A' formunu doldurunuz."},"Lütfen 2. kapı için 'Form A' formunu doldurunuz.","Please fill the 'Form A' for 2nd door.","Пожалйста заполните \"Форму А\" для 2-й двери"]
[{"$f":"IF(Form!$AA$4=\"TR\",Languages!B50,IF(Form!$AA$4=\"EN\",Languages!C50,IF(Form!$AA$4=\"RU\",Languages!D50,\"HATA!\")))","v":"Lirpomp Gerilimi"},"Lirpomp Gerilimi","Door Lock Magnet","Напряжение дверного замка"]
[{"$f":"IF(Form!$AA$4=\"TR\",Languages!B51,IF(Form!$AA$4=\"EN\",Languages!C51,IF(Form!$AA$4=\"RU\",Languages!D51,\"HATA!\")))","v":"3-Faz Kapı Mot. için 3VF"},"3-Faz Kapı Mot. için 3VF","VVVF for 3-Phase Door","VVVF для 3-х фазного мотора"]
[{"$f":"IF(Form!$AA$4=\"TR\",Languages!B52,IF(Form!$AA$4=\"EN\",Languages!C52,IF(Form!$AA$4=\"RU\",Languages!D52,\"HATA!\")))","v":"VVVF Asansörler için Inverter Seçimi"},"VVVF Asansörler için Inverter Seçimi","Inverter Options for VVVF Lifts","Опции для лифтов с Инвертором VVVF"]
[{"$f":"IF(Form!$AA$4=\"TR\",Languages!B53,IF(Form!$AA$4=\"EN\",Languages!C53,IF(Form!$AA$4=\"RU\",Languages!D53,\"HATA!\")))","v":"İnverter Modeli"},"İnverter Modeli","Inverter Model","Модель Инвертора"]
[{"$f":"IF(Form!$AA$4=\"TR\",Languages!B54,IF(Form!$AA$4=\"EN\",Languages!C54,IF(Form!$AA$4=\"RU\",Languages!D54,\"HATA!\")))","v":"Enkoder Kartı"},"Enkoder Kartı","Encoder Cards","Плата энкодерная"]
[{"$f":"IF(Form!$AA$4=\"TR\",Languages!B55,IF(Form!$AA$4=\"EN\",Languages!C55,IF(Form!$AA$4=\"RU\",Languages!D55,\"HATA!\")))","v":"Opsiyonlar & Diğer Özellikler"},"Opsiyonlar & Diğer Özellikler","Options & Other Specifications","Опции и другие Специфиации"]
[{"$f":"IF(Form!$AA$4=\"TR\",Languages!B56,IF(Form!$AA$4=\"EN\",Languages!C56,IF(Form!$AA$4=\"RU\",Languages!D56,\"HATA!\")))","v":"Kata Getirme Cihazı"},"Kata Getirme Cihazı","Emergency Rescue Device","Противоаварийные устройства"]
[{"$f":"IF(Form!$AA$4=\"TR\",Languages!B57,IF(Form!$AA$4=\"EN\",Languages!C57,IF(Form!$AA$4=\"RU\",Languages!D57,\"HATA!\")))","v":"Valf"},"Valf","Valve","Клапан"]
[{"$f":"IF(Form!$AA$4=\"TR\",Languages!B58,IF(Form!$AA$4=\"EN\",Languages!C58,IF(Form!$AA$4=\"RU\",Languages!D58,\"HATA!\")))","v":"Emniyet Devresi"},"Emniyet Devresi","Safety Circuit","Цепь безопасности"]
[{"$f":"IF(Form!$AA$4=\"TR\",Languages!B59,IF(Form!$AA$4=\"EN\",Languages!C59,IF(Form!$AA$4=\"RU\",Languages!D59,\"HATA!\")))","v":"Kumanda Panosu Tipi"},"Kumanda Panosu Tipi","Control Panel Type","Тип станции управления"]
[{"$f":"IF(Form!$AA$4=\"TR\",Languages!B60,IF(Form!$AA$4=\"EN\",Languages!C60,IF(Form!$AA$4=\"RU\",Languages!D60,\"HATA!\")))","v":"Kum. Panosu için Baza"},"Kum. Panosu için Baza","Base for Control Panel","База для панели управления"]
[{"$f":"IF(Form!$AA$4=\"TR\",Languages!B61,IF(Form!$AA$4=\"EN\",Languages!C61,IF(Form!$AA$4=\"RU\",Languages!D61,\"HATA!\")))","v":"Kontaktör Tipi"},"Kontaktör Tipi","Contactor Type","Тип контакторов"]
[{"$f":"IF(Form!$AA$4=\"TR\",Languages!B62,IF(Form!$AA$4=\"EN\",Languages!C62,IF(Form!$AA$4=\"RU\",Languages!D62,\"HATA!\")))","v":"Ön Tetik. Reg. Bobin Gerilimi"},"Ön Tetik. Reg. Bobin Gerilimi","POSG Coil Voltage","Ограничитель сорости V"]
[{"$f":"IF(Form!$AA$4=\"TR\",Languages!B63,IF(Form!$AA$4=\"EN\",Languages!C63,IF(Form!$AA$4=\"RU\",Languages!D63,\"HATA!\")))","v":"Seviyeleme & Erken Kapı Açma"},"Seviyeleme & Erken Kapı Açma","Re-levell. & Adv. Door Opening","Предворительное откр. Дверей"]
[{"$f":"IF(Form!$AA$4=\"TR\",Languages!B64,IF(Form!$AA$4=\"EN\",Languages!C64,IF(Form!$AA$4=\"RU\",Languages!D64,\"HATA!\")))","v":"3VF için Ekranlı Mot Kabl (7M)"},"3VF için Ekranlı Mot Kabl (7M)","Screen. Mot. Cable for VF (7M)","Моторный кабель VF (7М)"]
[{"$f":"IF(Form!$AA$4=\"TR\",Languages!B65,IF(Form!$AA$4=\"EN\",Languages!C65,IF(Form!$AA$4=\"RU\",Languages!D65,\"HATA!\")))","v":"Elektrik Dağıtım Panosu"},"Elektrik Dağıtım Panosu","Mains Supply Inside CP","Основное питание СУ"]
[{"$f":"IF(Form!$AA$4=\"TR\",Languages!B66,IF(Form!$AA$4=\"EN\",Languages!C66,IF(Form!$AA$4=\"RU\",Languages!D66,\"HATA!\")))","v":"Revizyon kutusu dahildir."},"Revizyon kutusu dahildir.","Inspection box is included.","Блок ревизии прилагается"]
[{"$f":"IF(Form!$AA$4=\"TR\",Languages!B67,IF(Form!$AA$4=\"EN\",Languages!C67,IF(Form!$AA$4=\"RU\",Languages!D67,\"HATA!\")))","v":"Kat ve Kabin Butonyerleri"},"Kat ve Kabin Butonyerleri","Car and Landing Operator Panels","Пульт приказа и Кнопки вызова"]
[{"$f":"IF(Form!$AA$4=\"TR\",Languages!B68,IF(Form!$AA$4=\"EN\",Languages!C68,IF(Form!$AA$4=\"RU\",Languages!D68,\"HATA!\")))","v":"COP"},"COP","COP","Пост приказа"]
[{"$f":"IF(Form!$AA$4=\"TR\",Languages!B69,IF(Form!$AA$4=\"EN\",Languages!C69,IF(Form!$AA$4=\"RU\",Languages!D69,\"HATA!\")))","v":"Gösterge"},"Gösterge","Display","Дисплей"]
[{"$f":"IF(Form!$AA$4=\"TR\",Languages!B70,IF(Form!$AA$4=\"EN\",Languages!C70,IF(Form!$AA$4=\"RU\",Languages!D70,\"HATA!\")))","v":"Montaj Şekli"},"Montaj Şekli","Mounting Type","Тип монтажа"]
[{"$f":"IF(Form!$AA$4=\"TR\",Languages!B71,IF(Form!$AA$4=\"EN\",Languages!C71,IF(Form!$AA$4=\"RU\",Languages!D71,\"HATA!\")))","v":"LOPs"},"LOPs","LOPs","Кнопки вызова"]
[{"$f":"IF(Form!$AA$4=\"TR\",Languages!B72,IF(Form!$AA$4=\"EN\",Languages!C72,IF(Form!$AA$4=\"RU\",Languages!D72,\"HATA!\")))","v":"Durak İsimleri"},"Durak İsimleri","Floor Names","Наименование этажей"]
[{"$f":"IF(Form!$AA$4=\"TR\",Languages!B73,IF(Form!$AA$4=\"EN\",Languages!C73,IF(Form!$AA$4=\"RU\",Languages!D73,\"HATA!\")))","v":"Anons Modülü için SD Kart"},"Anons Modülü için SD Kart","SD Card for Voice Announcer","SD Карта для голосового анонса"]
[{"$f":"IF(Form!$AA$4=\"TR\",Languages!B74,IF(Form!$AA$4=\"EN\",Languages!C74,IF(Form!$AA$4=\"RU\",Languages!D74,\"HATA!\")))","v":"Işıklandırmalı Firma Logosu"},"Işıklandırmalı Firma Logosu","Back-light Company Logo","Логотип компании на заднем фоне"]
[{"$f":"IF(Form!$AA$4=\"TR\",Languages!B75,IF(Form!$AA$4=\"EN\",Languages!C75,IF(Form!$AA$4=\"RU\",Languages!D75,\"HATA!\")))","v":"2. İntercom Modülü"},"2. İntercom Modülü","2nd Intercom Module","2-й Интерком модуль"]
[{"$f":"IF(Form!$AA$4=\"TR\",Languages!B76,IF(Form!$AA$4=\"EN\",Languages!C76,IF(Form!$AA$4=\"RU\",Languages!D76,\"HATA!\")))","v":"Kat Butonyeri için Lazer Logo"},"Kat Butonyeri için Lazer Logo","Laser Logo for LOPs","Логотип на кнопах вызова"]
[{"$f":"IF(Form!$AA$4=\"TR\",Languages!B77,IF(Form!$AA$4=\"EN\",Languages!C77,IF(Form!$AA$4=\"RU\",Languages!D77,\"HATA!\")))","v":"SC24 Kartı için Kablo Seti"},"SC24 Kartı için Kablo Seti","Cable Set for SC24 Board","Кабель для SC24 платы"]
[{"$f":"IF(Form!$AA$4=\"TR\",Languages!B78,IF(Form!$AA$4=\"EN\",Languages!C78,IF(Form!$AA$4=\"RU\",Languages!D78,\"HATA!\")))","v":"SL Kartları için Kablo Seti"},"SL Kartları için Kablo Seti","Cable Set for SL Boards","Кабель для SL платы"]
[{"$f":"IF(Form!$AA$4=\"TR\",Languages!B79,IF(Form!$AA$4=\"EN\",Languages!C79,IF(Form!$AA$4=\"RU\",Languages!D79,\"HATA!\")))","v":"Kabin But. & Rev. Kut. Bağ. Kabl."},"Kabin But. & Rev. Kut. Bağ. Kabl.","COP to Insp. Box Conn. Cable","Кабель до Пульта приказа"]
[{"$f":"IF(Form!$AA$4=\"TR\",Languages!B80,IF(Form!$AA$4=\"EN\",Languages!C80,IF(Form!$AA$4=\"RU\",Languages!D80,\"HATA!\")))","v":"Boş bırakılan VAR/YOK seçimleri 'YOK' kabul edilecektir."},"Boş bırakılan VAR/YOK seçimleri 'YOK' kabul edilecektir.","Blank YES/NO options will be assumed as 'NO'.","Не заполненые поля будут отмечены как \"нет\""]
[{"$f":"IF(Form!$AA$4=\"TR\",Languages!B81,IF(Form!$AA$4=\"EN\",Languages!C81,IF(Form!$AA$4=\"RU\",Languages!D81,\"HATA!\")))","v":"Notlar"},"Notlar","Notes","Заметки"]
[{"$f":"IF(Form!$AA$4=\"TR\",Languages!B82,IF(Form!$AA$4=\"EN\",Languages!C82,IF(Form!$AA$4=\"RU\",Languages!D82,\"HATA!\")))","v":"Sipariş Onayı"},"Sipariş Onayı","Order Confirmation","Подтверждение заказа"]
[{"$f":"IF(Form!$AA$4=\"TR\",Languages!B83,IF(Form!$AA$4=\"EN\",Languages!C83,IF(Form!$AA$4=\"RU\",Languages!D83,\"HATA!\")))","v":"Lütfen hangi katta hangi kapının açılacağını aşağıda belirtiniz."},"Lütfen hangi katta hangi kapının açılacağını aşağıda belirtiniz.","Please mark opening combinations of the doors below.","Отметьте комбинацию открывания дверей на этажах"]
[{"$f":"IF(Form!$AA$4=\"TR\",Languages!B84,IF(Form!$AA$4=\"EN\",Languages!C84,IF(Form!$AA$4=\"RU\",Languages!D84,\"HATA!\")))","v":"A Kapısı"},"A Kapısı","Door A","Дверь А"]
[{"$f":"IF(Form!$AA$4=\"TR\",Languages!B85,IF(Form!$AA$4=\"EN\",Languages!C85,IF(Form!$AA$4=\"RU\",Languages!D85,\"HATA!\")))","v":"B Kapısı"},"B Kapısı","Door B","Дверь Б"]
[{"$f":"IF(Form!$AA$4=\"TR\",Languages!B86,IF(Form!$AA$4=\"EN\",Languages!C86,IF(Form!$AA$4=\"RU\",Languages!D86,\"HATA!\")))","v":"Katlar"},"Katlar","Floors","Этажи"]
[{"$f":"IF(Form!$AA$4=\"TR\",Languages!B87,IF(Form!$AA$4=\"EN\",Languages!C87,IF(Form!$AA$4=\"RU\",Languages!D87,\"HATA!\")))","v":"Kattan Kata Mesafeler (mm)"},"Kattan Kata Mesafeler (mm)","Floor to Floor Distances (mm)","Расстояние между этажами"]
[{"$f":"IF(Form!$AA$4=\"TR\",Languages!B88,IF(Form!$AA$4=\"EN\",Languages!C88,IF(Form!$AA$4=\"RU\",Languages!D88,\"HATA!\")))","v":"En üst kat butonu ve pano arası mesafe =>"},"En üst kat butonu ve pano arası mesafe =>","Distance from top floor LOP to Control Panel =>","Расстояние от блока ревизии до кнопки вызова последнего этажа"]
[{"$f":"IF(Form!$AA$4=\"TR\",Languages!B89,IF(Form!$AA$4=\"EN\",Languages!C89,IF(Form!$AA$4=\"RU\",Languages!D89,\"HATA!\")))","v":"Kuyu dibi =>"},"Kuyu dibi =>","Shaft Pit =>","Блок ревизии приямка =>"]
[{"$f":"IF(Form!$AA$4=\"TR\",Languages!B90,IF(Form!$AA$4=\"EN\",Languages!C90,IF(Form!$AA$4=\"RU\",Languages!D90,\"HATA!\")))","v":"Lütfen kattan kata mesafeler için 'Form A' sayfasını doldurunuz."},"Lütfen kattan kata mesafeler için 'Form A' sayfasını doldurunuz.","Please fill the form in sheet 'Form A' for floor to floor distances.","Заполните расстояние между этажами в \"Форме А\""]
[{"$f":"IF(Form!$AA$4=\"TR\",Languages!B91,IF(Form!$AA$4=\"EN\",Languages!C91,IF(Form!$AA$4=\"RU\",Languages!D91,\"HATA!\")))","v":"Makine Dairesi Tesisatı"},"Makine Dairesi Tesisatı","Machine Room Pre-wired Cables","Проводка машинного помещения"]
[{"$f":"IF(Form!$AA$4=\"TR\",Languages!B92,IF(Form!$AA$4=\"EN\",Languages!C92,IF(Form!$AA$4=\"RU\",Languages!D92,\"HATA!\")))","v":"Kuyu İçi Tesisatı"},"Kuyu İçi Tesisatı","Shaft Pre-wired Cables","Проводка шахты"]
[{"$f":"IF(Form!$AA$4=\"TR\",Languages!B93,IF(Form!$AA$4=\"EN\",Languages!C93,IF(Form!$AA$4=\"RU\",Languages!D93,\"HATA!\")))","v":"Fleksibıl Kablo"},"Fleksibıl Kablo","Flexible Cable","подвесной кабель"]
[{"$f":"IF(Form!$AA$4=\"TR\",Languages!B94,IF(Form!$AA$4=\"EN\",Languages!C94,IF(Form!$AA$4=\"RU\",Languages!D94,\"HATA!\")))","v":"Kuyu İçi Aydınlatması (LED)"},"Kuyu İçi Aydınlatması (LED)","Shaft Illumination (LED)","Освещение шахты (LED)"]
[{"$f":"IF(Form!$AA$4=\"TR\",Languages!B95,IF(Form!$AA$4=\"EN\",Languages!C95,IF(Form!$AA$4=\"RU\",Languages!D95,\"HATA!\")))","v":"Kuyu Dibi Kutusu & Kuyu Dibi Kabloları"},"Kuyu Dibi Kutusu & Kuyu Dibi Kabloları","Shaft Pit Box & Shaft Cables","Блок ревизии приямка и проводка"]
[{"$f":"IF(Form!$AA$4=\"TR\",Languages!B96,IF(Form!$AA$4=\"EN\",Languages!C96,IF(Form!$AA$4=\"RU\",Languages!D96,\"HATA!\")))","v":"Kuyu Dibi Kablosu (KP'ndan)"},"Kuyu Dibi Kablosu (KP'ndan)","Shaft Pit Cable (from CP)","Кабель от панели управления до блока ревизии приямка"]
[{"$f":"IF(Form!$AA$4=\"TR\",Languages!B97,IF(Form!$AA$4=\"EN\",Languages!C97,IF(Form!$AA$4=\"RU\",Languages!D97,\"HATA!\")))","v":"Hazır Tesisat"},"Hazır Tesisat","Pre-wired Cables","Готовая к подключению проводка"]
[{"$f":"IF(Form!$AA$4=\"TR\",Languages!B98,IF(Form!$AA$4=\"EN\",Languages!C98,IF(Form!$AA$4=\"RU\",Languages!D98,\"HATA!\")))","v":"Tümleşik ürün seçtiniz lütfen boş bırakınız."},"Tümleşik ürün seçtiniz lütfen boş bırakınız.","Please leave it blank because you choose integrated controller.","Пожалуйста заполните этот бланк, потому что, вы выбрали интегрированную систему управления."]